{"text_format":"1","workbook":"xlsx","n_sheets":3,"sheets":["Muster 7.3","NC-Codes (numerisch)","NC-Codes (alphabetisch)"],"not_rendered":{"charts":0,"images":0,"macros":1,"external_links":0,"defined_names":6,"comments":0,"pivot_tables":0},"unopened":[],"bounds":{"document_bytes":16777216,"sheet_cells":100000,"rows_first":2000,"rows_last":500,"rows_between":2000,"halvings":0,"cell_chars":16384,"cell_head_chars":4096},"cells_cut":0,"cells_raw":0,"read":"whole","date_system":"1900"}

{"sheet":"Muster 7.3","index":0,"n_rows":525,"n_cols":18,"rows_kept":525,"cut":false,"hidden":false,"merged":[[509,1,509,2],[519,3,519,7],[519,8,519,16],[513,13,513,14],[513,11,513,12],[513,7,513,8],[510,1,510,2],[511,1,511,2],[511,3,511,5],[510,14,510,16],[511,14,511,16],[521,1,521,4],[3,2,3,8],[3,10,3,16],[516,3,518,7],[516,8,518,16],[4,3,4,8],[4,15,4,16],[4,11,4,12],[4,13,4,14],[513,15,513,16],[5,1,6,3],[5,4,6,4],[5,5,6,5],[5,6,6,6],[5,7,6,16],[4,9,4,10]]}
[]
[null,"Muster E 3.3       Flächennachweis KVM- / HU-Bau"]
[]
[null,null,"zu der Kostenvoranmeldung - Bau (KVM-Bau)",null,null,null,null,null,null,null,"zu der Haushaltsunterlage - Bau (HU-Bau)"]
[null,"Baumaßnahme: ",null,null,null,null,null,null,null,"Bearbeiter/in",null,null,null,"Datum"]
[null,"nach Raumbedarfsplan",null,null,"nach \nHU -Bau-","Ist - Fläche (NRF)","Differenz","gemäß DIN 277"]
[]
[null,"Raum-\nProgr.\nNr.","Raum-\nbezeichnung","genehm.\n(NUF 1-6)\nm²","Raum-\nNr.","m² / \nRaum","m² / Raum","Nutzungs-code\nNC 5-stellig","NUF 1 \nm²","NUF 2\nm²","NUF 3\nm²","NUF 4\nm²","NUF 5\nm²","NUF 6\nm²","NUF 7\nm²","VF\nm²","TF\nm²"]
[null,1,2,3,4,5,6,7,8,9,10,11,12,13,14,15,16,"m"]
[null,null,null,null,null,null,{"$f":"F10-D10","v":0},null,{"$f":"IF(AND(H10>9999,H10<20000),F10,\" \")","v":" "},{"$f":"IF(AND(H10>19999,H10<30000),F10,\" \")","v":" "},{"$f":"IF(AND($H10>29999,$H10<40000),F10,\" \")","v":" "},{"$f":"IF(AND($H10>39999,$H10<50000),F10,\" \")","v":" "},{"$f":"IF(AND($H10>49999,$H10<60000),F10,\" \")","v":" "},{"$f":"IF(AND($H10>59999,$H10<70000),F10,\" \")","v":" "},{"$f":"IF(AND($H10>69999,$H10<80000),F10,\" \")","v":" "},{"$f":"IF(AND($H10>89999,$H10<100000),F10,\" \")","v":" "},{"$f":"IF(AND($H10>79999,$H10<90000),F10,\" \")","v":" "},{"$f":"ISBLANK(F10)","v":true}]
[null,null,null,null,null,null,{"$f":"F11-D11","v":0},null," "," "," "," "," "," "," "," "," ",true]
[null,null,null,null,null,null,0,null," "," "," "," "," "," "," "," "," ",true]
[null,null,null,null,null,null,0,null," "," "," "," "," "," "," "," "," ",true]
[null,null,null,null,null,null,0,null," "," "," "," "," "," "," "," "," ",true]
[null,null,null,null,null,null,0,null," "," "," "," "," "," "," "," "," ",true]
[null,null,null,null,null,null,0,null," "," "," "," "," "," "," "," "," ",true]
[null,null,null,null,null,null,0,null," "," "," "," "," "," "," "," "," ",true]
[null,null,null,null,null,null,0,null," "," "," "," "," "," "," "," "," ",true]
[null,null,null,null,null,null,0,null," "," "," "," "," "," "," "," "," ",true]
[null,null,null,null,null,null,0,null," "," "," "," "," "," "," "," "," ",true]
[null,null,null,null,null,null,0,null," "," "," "," "," "," "," "," "," ",true]
[null,null,null,null,null,null,0,null," "," "," "," "," "," "," "," "," ",true]
[null,null,null,null,null,null,0,null," "," "," "," "," "," "," "," "," ",true]
[null,null,null,null,null,null,0,null," "," "," "," "," "," "," "," "," ",true]
[null,null,null,null,null,null,0,null," "," "," "," "," "," "," "," "," ",true]
[null,null,null,null,null,null,0,null," "," "," "," "," "," "," "," "," ",true]
[null,null,null,null,null,null,0,null," "," "," "," "," "," "," "," "," ",true]
[null,null,null,null,null,null,0,null," "," "," "," "," "," "," "," "," ",true]
[null,null,null,null,null,null,0,null," "," "," "," "," "," "," "," "," ",true]
[null,null,null,null,null,null,0,null," "," "," "," "," "," "," "," "," ",true]
[null,null,null,null,null,null,0,null," "," "," "," "," "," "," "," "," ",true]
[null,null,null,null,null,null,0,null," "," "," "," "," "," "," "," "," ",true]
[null,null,null,null,null,null,0,null," "," "," "," "," "," "," "," "," ",true]
[null,null,null,null,null,null,0,null," "," "," "," "," "," "," "," "," ",true]
[null,null,null,null,null,null,0,null," "," "," "," "," "," "," "," "," ",true]
[null,null,null,null,null,null,0,null," "," "," "," "," "," "," "," "," ",true]
[null,null,null,null,null,null,0,null," "," "," "," "," "," "," "," "," ",true]
[null,null,null,null,null,null,0,null," "," "," "," "," "," "," "," "," ",true]
[null,null,null,null,null,null,0,null," "," "," "," "," "," "," "," "," ",true]
[null,null,null,null,null,null,0,null," "," "," "," "," "," "," "," "," ",true]
[null,null,null,null,null,null,0,null," "," "," "," "," "," "," "," "," ",true]
[null,null,null,null,null,null,0,null," "," "," "," "," "," "," "," "," ",true]
[null,null,null,null,null,null,0,null," "," "," "," "," "," "," "," "," ",true]
[null,null,null,null,null,null,0,null," "," "," "," "," "," "," "," "," ",true]
[null,null,null,null,null,null,0,null," "," "," "," "," "," "," "," "," ",true]
[null,null,null,null,null,null,0,null," "," "," "," "," "," "," "," "," ",true]
[null,null,null,null,null,null,0,null," "," "," "," "," "," "," "," "," ",true]
[null,null,null,null,null,null,0,null," "," "," "," "," "," "," "," "," ",true]
[null,null,null,null,null,null,0,null," "," "," "," "," "," "," "," "," ",true]
[null,null,null,null,null,null,0,null," "," "," "," "," "," "," "," "," ",true]
[null,null,null,null,null,null,0,null," "," "," "," "," "," "," "," "," ",true]
[null,null,null,null,null,null,0,null," "," "," "," "," "," "," "," "," ",true]
[null,null,null,null,null,null,0,null," "," "," "," "," "," "," "," "," ",true]
[null,null,null,null,null,null,0,null," "," "," "," "," "," "," "," "," ",true]
[null,null,null,null,null,null,0,null," "," "," "," "," "," "," "," "," ",true]
[null,null,null,null,null,null,0,null," "," "," "," "," "," "," "," "," ",true]
[null,null,null,null,null,null,0,null," "," "," "," "," "," "," "," "," ",true]
[null,null,null,null,null,null,0,null," "," "," "," "," "," "," "," "," ",true]
[null,null,null,null,null,null,0,null," "," "," "," "," "," "," "," "," ",true]
[null,null,null,null,null,null,0,null," "," "," "," "," "," "," "," "," ",true]
[null,null,null,null,null,null,0,null," "," "," "," "," "," "," "," "," ",true]
[null,null,null,null,null,null,0,null," "," "," "," "," "," "," "," "," ",true]
[null,null,null,null,null,null,0,null," "," "," "," "," "," "," "," "," ",true]
[null,null,null,null,null,null,0,null," "," "," "," "," "," "," "," "," ",true]
[null,null,null,null,null,null,0,null," "," "," "," "," "," "," "," "," ",true]
[null,null,null,null,null,null,0,null," "," "," "," "," "," "," "," "," ",true]
[null,null,null,null,null,null,0,null," "," "," "," "," "," "," "," "," ",true]
[null,null,null,null,null,null,0,null," "," "," "," "," "," "," "," "," ",true]
[null,null,null,null,null,null,0,null," "," "," "," "," "," "," "," "," ",true]
[null,null,null,null,null,null,0,null," "," "," "," "," "," "," "," "," ",true]
[null,null,null,null,null,null,0,null," "," "," "," "," "," "," "," "," ",true]
[null,null,null,null,null,null,0,null," "," "," "," "," "," "," "," "," ",true]
[null,null,null,null,null,null,0,null," "," "," "," "," "," "," "," "," ",true]
[null,null,null,null,null,null,0,null,{"$f":"IF(AND(H74>9999,H74<20000),F74,\" \")","v":" "},{"$f":"IF(AND(H74>19999,H74<30000),F74,\" \")","v":" "},{"$f":"IF(AND($H74>29999,$H74<40000),F74,\" \")","v":" "},{"$f":"IF(AND($H74>39999,$H74<50000),F74,\" \")","v":" "},{"$f":"IF(AND($H74>49999,$H74<60000),F74,\" \")","v":" "},{"$f":"IF(AND($H74>59999,$H74<70000),F74,\" \")","v":" "},{"$f":"IF(AND($H74>69999,$H74<80000),F74,\" \")","v":" "},{"$f":"IF(AND($H74>89999,$H74<100000),F74,\" \")","v":" "},{"$f":"IF(AND($H74>79999,$H74<90000),F74,\" \")","v":" "},true]
[null,null,null,null,null,null,{"$f":"F75-D75","v":0},null," "," "," "," "," "," "," "," "," ",{"$f":"ISBLANK(F75)","v":true}]
[null,null,null,null,null,null,0,null," "," "," "," "," "," "," "," "," ",true]
[null,null,null,null,null,null,0,null," "," "," "," "," "," "," "," "," ",true]
[null,null,null,null,null,null,0,null," "," "," "," "," "," "," "," "," ",true]
[null,null,null,null,null,null,0,null," "," "," "," "," "," "," "," "," ",true]
[null,null,null,null,null,null,0,null," "," "," "," "," "," "," "," "," ",true]
[null,null,null,null,null,null,0,null," "," "," "," "," "," "," "," "," ",true]
[null,null,null,null,null,null,0,null," "," "," "," "," "," "," "," "," ",true]
[null,null,null,null,null,null,0,null," "," "," "," "," "," "," "," "," ",true]
[null,null,null,null,null,null,0,null," "," "," "," "," "," "," "," "," ",true]
[null,null,null,null,null,null,0,null," "," "," "," "," "," "," "," "," ",true]
[null,null,null,null,null,null,0,null," "," "," "," "," "," "," "," "," ",true]
[null,null,null,null,null,null,0,null," "," "," "," "," "," "," "," "," ",true]
[null,null,null,null,null,null,0,null," "," "," "," "," "," "," "," "," ",true]
[null,null,null,null,null,null,0,null," "," "," "," "," "," "," "," "," ",true]
[null,null,null,null,null,null,0,null," "," "," "," "," "," "," "," "," ",true]
[null,null,null,null,null,null,0,null," "," "," "," "," "," "," "," "," ",true]
[null,null,null,null,null,null,0,null," "," "," "," "," "," "," "," "," ",true]
[null,null,null,null,null,null,0,null," "," "," "," "," "," "," "," "," ",true]
[null,null,null,null,null,null,0,null," "," "," "," "," "," "," "," "," ",true]
[null,null,null,null,null,null,0,null," "," "," "," "," "," "," "," "," ",true]
[null,null,null,null,null,null,0,null," "," "," "," "," "," "," "," "," ",true]
[null,null,null,null,null,null,0,null," "," "," "," "," "," "," "," "," ",true]
[null,null,null,null,null,null,0,null," "," "," "," "," "," "," "," "," ",true]
[null,null,null,null,null,null,0,null," "," "," "," "," "," "," "," "," ",true]
[null,null,null,null,null,null,0,null," "," "," "," "," "," "," "," "," ",true]
[null,null,null,null,null,null,0,null," "," "," "," "," "," "," "," "," ",true]
[null,null,null,null,null,null,0,null," "," "," "," "," "," "," "," "," ",true]
[null,null,null,null,null,null,0,null," "," "," "," "," "," "," "," "," ",true]
[null,null,null,null,null,null,0,null," "," "," "," "," "," "," "," "," ",true]
[null,null,null,null,null,null,0,null," "," "," "," "," "," "," "," "," ",true]
[null,null,null,null,null,null,0,null," "," "," "," "," "," "," "," "," ",true]
[null,null,null,null,null,null,0,null," "," "," "," "," "," "," "," "," ",true]
[null,null,null,null,null,null,0,null," "," "," "," "," "," "," "," "," ",true]
[null,null,null,null,null,null,0,null," "," "," "," "," "," "," "," "," ",true]
[null,null,null,null,null,null,0,null," "," "," "," "," "," "," "," "," ",true]
[null,null,null,null,null,null,0,null," "," "," "," "," "," "," "," "," ",true]
[null,null,null,null,null,null,0,null," "," "," "," "," "," "," "," "," ",true]
[null,null,null,null,null,null,0,null," "," "," "," "," "," "," "," "," ",true]
[null,null,null,null,null,null,0,null," "," "," "," "," "," "," "," "," ",true]
[null,null,null,null,null,null,0,null," "," "," "," "," "," "," "," "," ",true]
[null,null,null,null,null,null,0,null," "," "," "," "," "," "," "," "," ",true]
[null,null,null,null,null,null,0,null," "," "," "," "," "," "," "," "," ",true]
[null,null,null,null,null,null,0,null," "," "," "," "," "," "," "," "," ",true]
[null,null,null,null,null,null,0,null," "," "," "," "," "," "," "," "," ",true]
[null,null,null,null,null,null,0,null," "," "," "," "," "," "," "," "," ",true]
[null,null,null,null,null,null,0,null," "," "," "," "," "," "," "," "," ",true]
[null,null,null,null,null,null,0,null," "," "," "," "," "," "," "," "," ",true]
[null,null,null,null,null,null,0,null," "," "," "," "," "," "," "," "," ",true]
[null,null,null,null,null,null,0,null," "," "," "," "," "," "," "," "," ",true]
[null,null,null,null,null,null,0,null," "," "," "," "," "," "," "," "," ",true]
[null,null,null,null,null,null,0,null," "," "," "," "," "," "," "," "," ",true]
[null,null,null,null,null,null,0,null," "," "," "," "," "," "," "," "," ",true]
[null,null,null,null,null,null,0,null," "," "," "," "," "," "," "," "," ",true]
[null,null,null,null,null,null,0,null," "," "," "," "," "," "," "," "," ",true]
[null,null,null,null,null,null,0,null," "," "," "," "," "," "," "," "," ",true]
[null,null,null,null,null,null,0,null," "," "," "," "," "," "," "," "," ",true]
[null,null,null,null,null,null,0,null," "," "," "," "," "," "," "," "," ",true]
[null,null,null,null,null,null,0,null," "," "," "," "," "," "," "," "," ",true]
[null,null,null,null,null,null,0,null," "," "," "," "," "," "," "," "," ",true]
[null,null,null,null,null,null,0,null," "," "," "," "," "," "," "," "," ",true]
[null,null,null,null,null,null,0,null," "," "," "," "," "," "," "," "," ",true]
[null,null,null,null,null,null,0,null," "," "," "," "," "," "," "," "," ",true]
[null,null,null,null,null,null,0,null,{"$f":"IF(AND(H138>9999,H138<20000),F138,\" \")","v":" "},{"$f":"IF(AND(H138>19999,H138<30000),F138,\" \")","v":" "},{"$f":"IF(AND($H138>29999,$H138<40000),F138,\" \")","v":" "},{"$f":"IF(AND($H138>39999,$H138<50000),F138,\" \")","v":" "},{"$f":"IF(AND($H138>49999,$H138<60000),F138,\" \")","v":" "},{"$f":"IF(AND($H138>59999,$H138<70000),F138,\" \")","v":" "},{"$f":"IF(AND($H138>69999,$H138<80000),F138,\" \")","v":" "},{"$f":"IF(AND($H138>89999,$H138<100000),F138,\" \")","v":" "},{"$f":"IF(AND($H138>79999,$H138<90000),F138,\" \")","v":" "},true]
[null,null,null,null,null,null,{"$f":"F139-D139","v":0},null," "," "," "," "," "," "," "," "," ",{"$f":"ISBLANK(F139)","v":true}]
[null,null,null,null,null,null,0,null," "," "," "," "," "," "," "," "," ",true]
[null,null,null,null,null,null,0,null," "," "," "," "," "," "," "," "," ",true]
[null,null,null,null,null,null,0,null," "," "," "," "," "," "," "," "," ",true]
[null,null,null,null,null,null,0,null," "," "," "," "," "," "," "," "," ",true]
[null,null,null,null,null,null,0,null," "," "," "," "," "," "," "," "," ",true]
[null,null,null,null,null,null,0,null," "," "," "," "," "," "," "," "," ",true]
[null,null,null,null,null,null,0,null," "," "," "," "," "," "," "," "," ",true]
[null,null,null,null,null,null,0,null," "," "," "," "," "," "," "," "," ",true]
[null,null,null,null,null,null,0,null," "," "," "," "," "," "," "," "," ",true]
[null,null,null,null,null,null,0,null," "," "," "," "," "," "," "," "," ",true]
[null,null,null,null,null,null,0,null," "," "," "," "," "," "," "," "," ",true]
[null,null,null,null,null,null,0,null," "," "," "," "," "," "," "," "," ",true]
[null,null,null,null,null,null,0,null," "," "," "," "," "," "," "," "," ",true]
[null,null,null,null,null,null,0,null," "," "," "," "," "," "," "," "," ",true]
[null,null,null,null,null,null,0,null," "," "," "," "," "," "," "," "," ",true]
[null,null,null,null,null,null,0,null," "," "," "," "," "," "," "," "," ",true]
[null,null,null,null,null,null,0,null," "," "," "," "," "," "," "," "," ",true]
[null,null,null,null,null,null,0,null," "," "," "," "," "," "," "," "," ",true]
[null,null,null,null,null,null,0,null," "," "," "," "," "," "," "," "," ",true]
[null,null,null,null,null,null,0,null," "," "," "," "," "," "," "," "," ",true]
[null,null,null,null,null,null,0,null," "," "," "," "," "," "," "," "," ",true]
[null,null,null,null,null,null,0,null," "," "," "," "," "," "," "," "," ",true]
[null,null,null,null,null,null,0,null," "," "," "," "," "," "," "," "," ",true]
[null,null,null,null,null,null,0,null," "," "," "," "," "," "," "," "," ",true]
[null,null,null,null,null,null,0,null," "," "," "," "," "," "," "," "," ",true]
[null,null,null,null,null,null,0,null," "," "," "," "," "," "," "," "," ",true]
[null,null,null,null,null,null,0,null," "," "," "," "," "," "," "," "," ",true]
[null,null,null,null,null,null,0,null," "," "," "," "," "," "," "," "," ",true]
[null,null,null,null,null,null,0,null," "," "," "," "," "," "," "," "," ",true]
[null,null,null,null,null,null,0,null," "," "," "," "," "," "," "," "," ",true]
[null,null,null,null,null,null,0,null," "," "," "," "," "," "," "," "," ",true]
[null,null,null,null,null,null,0,null," "," "," "," "," "," "," "," "," ",true]
[null,null,null,null,null,null,0,null," "," "," "," "," "," "," "," "," ",true]
[null,null,null,null,null,null,0,null," "," "," "," "," "," "," "," "," ",true]
[null,null,null,null,null,null,0,null," "," "," "," "," "," "," "," "," ",true]
[null,null,null,null,null,null,0,null," "," "," "," "," "," "," "," "," ",true]
[null,null,null,null,null,null,0,null," "," "," "," "," "," "," "," "," ",true]
[null,null,null,null,null,null,0,null," "," "," "," "," "," "," "," "," ",true]
[null,null,null,null,null,null,0,null," "," "," "," "," "," "," "," "," ",true]
[null,null,null,null,null,null,0,null," "," "," "," "," "," "," "," "," ",true]
[null,null,null,null,null,null,0,null," "," "," "," "," "," "," "," "," ",true]
[null,null,null,null,null,null,0,null," "," "," "," "," "," "," "," "," ",true]
[null,null,null,null,null,null,0,null," "," "," "," "," "," "," "," "," ",true]
[null,null,null,null,null,null,0,null," "," "," "," "," "," "," "," "," ",true]
[null,null,null,null,null,null,0,null," "," "," "," "," "," "," "," "," ",true]
[null,null,null,null,null,null,0,null," "," "," "," "," "," "," "," "," ",true]
[null,null,null,null,null,null,0,null," "," "," "," "," "," "," "," "," ",true]
[null,null,null,null,null,null,0,null," "," "," "," "," "," "," "," "," ",true]
[null,null,null,null,null,null,0,null," "," "," "," "," "," "," "," "," ",true]
[null,null,null,null,null,null,0,null," "," "," "," "," "," "," "," "," ",true]
[null,null,null,null,null,null,0,null," "," "," "," "," "," "," "," "," ",true]
[null,null,null,null,null,null,0,null," "," "," "," "," "," "," "," "," ",true]
[null,null,null,null,null,null,0,null," "," "," "," "," "," "," "," "," ",true]
[null,null,null,null,null,null,0,null," "," "," "," "," "," "," "," "," ",true]
[null,null,null,null,null,null,0,null," "," "," "," "," "," "," "," "," ",true]
[null,null,null,null,null,null,0,null," "," "," "," "," "," "," "," "," ",true]
[null,null,null,null,null,null,0,null," "," "," "," "," "," "," "," "," ",true]
[null,null,null,null,null,null,0,null," "," "," "," "," "," "," "," "," ",true]
[null,null,null,null,null,null,0,null," "," "," "," "," "," "," "," "," ",true]
[null,null,null,null,null,null,0,null," "," "," "," "," "," "," "," "," ",true]
[null,null,null,null,null,null,0,null," "," "," "," "," "," "," "," "," ",true]
[null,null,null,null,null,null,0,null," "," "," "," "," "," "," "," "," ",true]
[null,null,null,null,null,null,0,null,{"$f":"IF(AND(H202>9999,H202<20000),F202,\" \")","v":" "},{"$f":"IF(AND(H202>19999,H202<30000),F202,\" \")","v":" "},{"$f":"IF(AND($H202>29999,$H202<40000),F202,\" \")","v":" "},{"$f":"IF(AND($H202>39999,$H202<50000),F202,\" \")","v":" "},{"$f":"IF(AND($H202>49999,$H202<60000),F202,\" \")","v":" "},{"$f":"IF(AND($H202>59999,$H202<70000),F202,\" \")","v":" "},{"$f":"IF(AND($H202>69999,$H202<80000),F202,\" \")","v":" "},{"$f":"IF(AND($H202>89999,$H202<100000),F202,\" \")","v":" "},{"$f":"IF(AND($H202>79999,$H202<90000),F202,\" \")","v":" "},true]
[null,null,null,null,null,null,{"$f":"F203-D203","v":0},null," "," "," "," "," "," "," "," "," ",{"$f":"ISBLANK(F203)","v":true}]
[null,null,null,null,null,null,0,null," "," "," "," "," "," "," "," "," ",true]
[null,null,null,null,null,null,0,null," "," "," "," "," "," "," "," "," ",true]
[null,null,null,null,null,null,0,null," "," "," "," "," "," "," "," "," ",true]
[null,null,null,null,null,null,0,null," "," "," "," "," "," "," "," "," ",true]
[null,null,null,null,null,null,0,null," "," "," "," "," "," "," "," "," ",true]
[null,null,null,null,null,null,0,null," "," "," "," "," "," "," "," "," ",true]
[null,null,null,null,null,null,0,null," "," "," "," "," "," "," "," "," ",true]
[null,null,null,null,null,null,0,null," "," "," "," "," "," "," "," "," ",true]
[null,null,null,null,null,null,0,null," "," "," "," "," "," "," "," "," ",true]
[null,null,null,null,null,null,0,null," "," "," "," "," "," "," "," "," ",true]
[null,null,null,null,null,null,0,null," "," "," "," "," "," "," "," "," ",true]
[null,null,null,null,null,null,0,null," "," "," "," "," "," "," "," "," ",true]
[null,null,null,null,null,null,0,null," "," "," "," "," "," "," "," "," ",true]
[null,null,null,null,null,null,0,null," "," "," "," "," "," "," "," "," ",true]
[null,null,null,null,null,null,0,null," "," "," "," "," "," "," "," "," ",true]
[null,null,null,null,null,null,0,null," "," "," "," "," "," "," "," "," ",true]
[null,null,null,null,null,null,0,null," "," "," "," "," "," "," "," "," ",true]
[null,null,null,null,null,null,0,null," "," "," "," "," "," "," "," "," ",true]
[null,null,null,null,null,null,0,null," "," "," "," "," "," "," "," "," ",true]
[null,null,null,null,null,null,0,null," "," "," "," "," "," "," "," "," ",true]
[null,null,null,null,null,null,0,null," "," "," "," "," "," "," "," "," ",true]
[null,null,null,null,null,null,0,null," "," "," "," "," "," "," "," "," ",true]
[null,null,null,null,null,null,0,null," "," "," "," "," "," "," "," "," ",true]
[null,null,null,null,null,null,0,null," "," "," "," "," "," "," "," "," ",true]
[null,null,null,null,null,null,0,null," "," "," "," "," "," "," "," "," ",true]
[null,null,null,null,null,null,0,null," "," "," "," "," "," "," "," "," ",true]
[null,null,null,null,null,null,0,null," "," "," "," "," "," "," "," "," ",true]
[null,null,null,null,null,null,0,null," "," "," "," "," "," "," "," "," ",true]
[null,null,null,null,null,null,0,null," "," "," "," "," "," "," "," "," ",true]
[null,null,null,null,null,null,0,null," "," "," "," "," "," "," "," "," ",true]
[null,null,null,null,null,null,0,null," "," "," "," "," "," "," "," "," ",true]
[null,null,null,null,null,null,0,null," "," "," "," "," "," "," "," "," ",true]
[null,null,null,null,null,null,0,null," "," "," "," "," "," "," "," "," ",true]
[null,null,null,null,null,null,0,null," "," "," "," "," "," "," "," "," ",true]
[null,null,null,null,null,null,0,null," "," "," "," "," "," "," "," "," ",true]
[null,null,null,null,null,null,0,null," "," "," "," "," "," "," "," "," ",true]
[null,null,null,null,null,null,0,null," "," "," "," "," "," "," "," "," ",true]
[null,null,null,null,null,null,0,null," "," "," "," "," "," "," "," "," ",true]
[null,null,null,null,null,null,0,null," "," "," "," "," "," "," "," "," ",true]
[null,null,null,null,null,null,0,null," "," "," "," "," "," "," "," "," ",true]
[null,null,null,null,null,null,0,null," "," "," "," "," "," "," "," "," ",true]
[null,null,null,null,null,null,0,null," "," "," "," "," "," "," "," "," ",true]
[null,null,null,null,null,null,0,null," "," "," "," "," "," "," "," "," ",true]
[null,null,null,null,null,null,0,null," "," "," "," "," "," "," "," "," ",true]
[null,null,null,null,null,null,0,null," "," "," "," "," "," "," "," "," ",true]
[null,null,null,null,null,null,0,null," "," "," "," "," "," "," "," "," ",true]
[null,null,null,null,null,null,0,null," "," "," "," "," "," "," "," "," ",true]
[null,null,null,null,null,null,0,null," "," "," "," "," "," "," "," "," ",true]
[null,null,null,null,null,null,0,null," "," "," "," "," "," "," "," "," ",true]
[null,null,null,null,null,null,0,null," "," "," "," "," "," "," "," "," ",true]
[null,null,null,null,null,null,0,null," "," "," "," "," "," "," "," "," ",true]
[null,null,null,null,null,null,0,null," "," "," "," "," "," "," "," "," ",true]
[null,null,null,null,null,null,0,null," "," "," "," "," "," "," "," "," ",true]
[null,null,null,null,null,null,0,null," "," "," "," "," "," "," "," "," ",true]
[null,null,null,null,null,null,0,null," "," "," "," "," "," "," "," "," ",true]
[null,null,null,null,null,null,0,null," "," "," "," "," "," "," "," "," ",true]
[null,null,null,null,null,null,0,null," "," "," "," "," "," "," "," "," ",true]
[null,null,null,null,null,null,0,null," "," "," "," "," "," "," "," "," ",true]
[null,null,null,null,null,null,0,null," "," "," "," "," "," "," "," "," ",true]
[null,null,null,null,null,null,0,null," "," "," "," "," "," "," "," "," ",true]
[null,null,null,null,null,null,0,null," "," "," "," "," "," "," "," "," ",true]
[null,null,null,null,null,null,0,null," "," "," "," "," "," "," "," "," ",true]
[null,null,null,null,null,null,0,null,{"$f":"IF(AND(H266>9999,H266<20000),F266,\" \")","v":" "},{"$f":"IF(AND(H266>19999,H266<30000),F266,\" \")","v":" "},{"$f":"IF(AND($H266>29999,$H266<40000),F266,\" \")","v":" "},{"$f":"IF(AND($H266>39999,$H266<50000),F266,\" \")","v":" "},{"$f":"IF(AND($H266>49999,$H266<60000),F266,\" \")","v":" "},{"$f":"IF(AND($H266>59999,$H266<70000),F266,\" \")","v":" "},{"$f":"IF(AND($H266>69999,$H266<80000),F266,\" \")","v":" "},{"$f":"IF(AND($H266>89999,$H266<100000),F266,\" \")","v":" "},{"$f":"IF(AND($H266>79999,$H266<90000),F266,\" \")","v":" "},true]
[null,null,null,null,null,null,{"$f":"F267-D267","v":0},null," "," "," "," "," "," "," "," "," ",{"$f":"ISBLANK(F267)","v":true}]
[null,null,null,null,null,null,0,null," "," "," "," "," "," "," "," "," ",true]
[null,null,null,null,null,null,0,null," "," "," "," "," "," "," "," "," ",true]
[null,null,null,null,null,null,0,null," "," "," "," "," "," "," "," "," ",true]
[null,null,null,null,null,null,0,null," "," "," "," "," "," "," "," "," ",true]
[null,null,null,null,null,null,0,null," "," "," "," "," "," "," "," "," ",true]
[null,null,null,null,null,null,0,null," "," "," "," "," "," "," "," "," ",true]
[null,null,null,null,null,null,0,null," "," "," "," "," "," "," "," "," ",true]
[null,null,null,null,null,null,0,null," "," "," "," "," "," "," "," "," ",true]
[null,null,null,null,null,null,0,null," "," "," "," "," "," "," "," "," ",true]
[null,null,null,null,null,null,0,null," "," "," "," "," "," "," "," "," ",true]
[null,null,null,null,null,null,0,null," "," "," "," "," "," "," "," "," ",true]
[null,null,null,null,null,null,0,null," "," "," "," "," "," "," "," "," ",true]
[null,null,null,null,null,null,0,null," "," "," "," "," "," "," "," "," ",true]
[null,null,null,null,null,null,0,null," "," "," "," "," "," "," "," "," ",true]
[null,null,null,null,null,null,0,null," "," "," "," "," "," "," "," "," ",true]
[null,null,null,null,null,null,0,null," "," "," "," "," "," "," "," "," ",true]
[null,null,null,null,null,null,0,null," "," "," "," "," "," "," "," "," ",true]
[null,null,null,null,null,null,0,null," "," "," "," "," "," "," "," "," ",true]
[null,null,null,null,null,null,0,null," "," "," "," "," "," "," "," "," ",true]
[null,null,null,null,null,null,0,null," "," "," "," "," "," "," "," "," ",true]
[null,null,null,null,null,null,0,null," "," "," "," "," "," "," "," "," ",true]
[null,null,null,null,null,null,0,null," "," "," "," "," "," "," "," "," ",true]
[null,null,null,null,null,null,0,null," "," "," "," "," "," "," "," "," ",true]
[null,null,null,null,null,null,0,null," "," "," "," "," "," "," "," "," ",true]
[null,null,null,null,null,null,0,null," "," "," "," "," "," "," "," "," ",true]
[null,null,null,null,null,null,0,null," "," "," "," "," "," "," "," "," ",true]
[null,null,null,null,null,null,0,null," "," "," "," "," "," "," "," "," ",true]
[null,null,null,null,null,null,0,null," "," "," "," "," "," "," "," "," ",true]
[null,null,null,null,null,null,0,null," "," "," "," "," "," "," "," "," ",true]
[null,null,null,null,null,null,0,null," "," "," "," "," "," "," "," "," ",true]
[null,null,null,null,null,null,0,null," "," "," "," "," "," "," "," "," ",true]
[null,null,null,null,null,null,0,null," "," "," "," "," "," "," "," "," ",true]
[null,null,null,null,null,null,0,null," "," "," "," "," "," "," "," "," ",true]
[null,null,null,null,null,null,0,null," "," "," "," "," "," "," "," "," ",true]
[null,null,null,null,null,null,0,null," "," "," "," "," "," "," "," "," ",true]
[null,null,null,null,null,null,0,null," "," "," "," "," "," "," "," "," ",true]
[null,null,null,null,null,null,0,null," "," "," "," "," "," "," "," "," ",true]
[null,null,null,null,null,null,0,null," "," "," "," "," "," "," "," "," ",true]
[null,null,null,null,null,null,0,null," "," "," "," "," "," "," "," "," ",true]
[null,null,null,null,null,null,0,null," "," "," "," "," "," "," "," "," ",true]
[null,null,null,null,null,null,0,null," "," "," "," "," "," "," "," "," ",true]
[null,null,null,null,null,null,0,null," "," "," "," "," "," "," "," "," ",true]
[null,null,null,null,null,null,0,null," "," "," "," "," "," "," "," "," ",true]
[null,null,null,null,null,null,0,null," "," "," "," "," "," "," "," "," ",true]
[null,null,null,null,null,null,0,null," "," "," "," "," "," "," "," "," ",true]
[null,null,null,null,null,null,0,null," "," "," "," "," "," "," "," "," ",true]
[null,null,null,null,null,null,0,null," "," "," "," "," "," "," "," "," ",true]
[null,null,null,null,null,null,0,null," "," "," "," "," "," "," "," "," ",true]
[null,null,null,null,null,null,0,null," "," "," "," "," "," "," "," "," ",true]
[null,null,null,null,null,null,0,null," "," "," "," "," "," "," "," "," ",true]
[null,null,null,null,null,null,0,null," "," "," "," "," "," "," "," "," ",true]
[null,null,null,null,null,null,0,null," "," "," "," "," "," "," "," "," ",true]
[null,null,null,null,null,null,0,null," "," "," "," "," "," "," "," "," ",true]
[null,null,null,null,null,null,0,null," "," "," "," "," "," "," "," "," ",true]
[null,null,null,null,null,null,0,null," "," "," "," "," "," "," "," "," ",true]
[null,null,null,null,null,null,0,null," "," "," "," "," "," "," "," "," ",true]
[null,null,null,null,null,null,0,null," "," "," "," "," "," "," "," "," ",true]
[null,null,null,null,null,null,0,null," "," "," "," "," "," "," "," "," ",true]
[null,null,null,null,null,null,0,null," "," "," "," "," "," "," "," "," ",true]
[null,null,null,null,null,null,0,null," "," "," "," "," "," "," "," "," ",true]
[null,null,null,null,null,null,0,null," "," "," "," "," "," "," "," "," ",true]
[null,null,null,null,null,null,0,null," "," "," "," "," "," "," "," "," ",true]
[null,null,null,null,null,null,0,null,{"$f":"IF(AND(H330>9999,H330<20000),F330,\" \")","v":" "},{"$f":"IF(AND(H330>19999,H330<30000),F330,\" \")","v":" "},{"$f":"IF(AND($H330>29999,$H330<40000),F330,\" \")","v":" "},{"$f":"IF(AND($H330>39999,$H330<50000),F330,\" \")","v":" "},{"$f":"IF(AND($H330>49999,$H330<60000),F330,\" \")","v":" "},{"$f":"IF(AND($H330>59999,$H330<70000),F330,\" \")","v":" "},{"$f":"IF(AND($H330>69999,$H330<80000),F330,\" \")","v":" "},{"$f":"IF(AND($H330>89999,$H330<100000),F330,\" \")","v":" "},{"$f":"IF(AND($H330>79999,$H330<90000),F330,\" \")","v":" "},true]
[null,null,null,null,null,null,{"$f":"F331-D331","v":0},null," "," "," "," "," "," "," "," "," ",{"$f":"ISBLANK(F331)","v":true}]
[null,null,null,null,null,null,0,null," "," "," "," "," "," "," "," "," ",true]
[null,null,null,null,null,null,0,null," "," "," "," "," "," "," "," "," ",true]
[null,null,null,null,null,null,0,null," "," "," "," "," "," "," "," "," ",true]
[null,null,null,null,null,null,0,null," "," "," "," "," "," "," "," "," ",true]
[null,null,null,null,null,null,0,null," "," "," "," "," "," "," "," "," ",true]
[null,null,null,null,null,null,0,null," "," "," "," "," "," "," "," "," ",true]
[null,null,null,null,null,null,0,null," "," "," "," "," "," "," "," "," ",true]
[null,null,null,null,null,null,0,null," "," "," "," "," "," "," "," "," ",true]
[null,null,null,null,null,null,0,null," "," "," "," "," "," "," "," "," ",true]
[null,null,null,null,null,null,0,null," "," "," "," "," "," "," "," "," ",true]
[null,null,null,null,null,null,0,null," "," "," "," "," "," "," "," "," ",true]
[null,null,null,null,null,null,0,null," "," "," "," "," "," "," "," "," ",true]
[null,null,null,null,null,null,0,null," "," "," "," "," "," "," "," "," ",true]
[null,null,null,null,null,null,0,null," "," "," "," "," "," "," "," "," ",true]
[null,null,null,null,null,null,0,null," "," "," "," "," "," "," "," "," ",true]
[null,null,null,null,null,null,0,null," "," "," "," "," "," "," "," "," ",true]
[null,null,null,null,null,null,0,null," "," "," "," "," "," "," "," "," ",true]
[null,null,null,null,null,null,0,null," "," "," "," "," "," "," "," "," ",true]
[null,null,null,null,null,null,0,null," "," "," "," "," "," "," "," "," ",true]
[null,null,null,null,null,null,0,null," "," "," "," "," "," "," "," "," ",true]
[null,null,null,null,null,null,0,null," "," "," "," "," "," "," "," "," ",true]
[null,null,null,null,null,null,0,null," "," "," "," "," "," "," "," "," ",true]
[null,null,null,null,null,null,0,null," "," "," "," "," "," "," "," "," ",true]
[null,null,null,null,null,null,0,null," "," "," "," "," "," "," "," "," ",true]
[null,null,null,null,null,null,0,null," "," "," "," "," "," "," "," "," ",true]
[null,null,null,null,null,null,0,null," "," "," "," "," "," "," "," "," ",true]
[null,null,null,null,null,null,0,null," "," "," "," "," "," "," "," "," ",true]
[null,null,null,null,null,null,0,null," "," "," "," "," "," "," "," "," ",true]
[null,null,null,null,null,null,0,null," "," "," "," "," "," "," "," "," ",true]
[null,null,null,null,null,null,0,null," "," "," "," "," "," "," "," "," ",true]
[null,null,null,null,null,null,0,null," "," "," "," "," "," "," "," "," ",true]
[null,null,null,null,null,null,0,null," "," "," "," "," "," "," "," "," ",true]
[null,null,null,null,null,null,0,null," "," "," "," "," "," "," "," "," ",true]
[null,null,null,null,null,null,0,null," "," "," "," "," "," "," "," "," ",true]
[null,null,null,null,null,null,0,null," "," "," "," "," "," "," "," "," ",true]
[null,null,null,null,null,null,0,null," "," "," "," "," "," "," "," "," ",true]
[null,null,null,null,null,null,0,null," "," "," "," "," "," "," "," "," ",true]
[null,null,null,null,null,null,0,null," "," "," "," "," "," "," "," "," ",true]
[null,null,null,null,null,null,0,null," "," "," "," "," "," "," "," "," ",true]
[null,null,null,null,null,null,0,null," "," "," "," "," "," "," "," "," ",true]
[null,null,null,null,null,null,0,null," "," "," "," "," "," "," "," "," ",true]
[null,null,null,null,null,null,0,null," "," "," "," "," "," "," "," "," ",true]
[null,null,null,null,null,null,0,null," "," "," "," "," "," "," "," "," ",true]
[null,null,null,null,null,null,0,null," "," "," "," "," "," "," "," "," ",true]
[null,null,null,null,null,null,0,null," "," "," "," "," "," "," "," "," ",true]
[null,null,null,null,null,null,0,null," "," "," "," "," "," "," "," "," ",true]
[null,null,null,null,null,null,0,null," "," "," "," "," "," "," "," "," ",true]
[null,null,null,null,null,null,0,null," "," "," "," "," "," "," "," "," ",true]
[null,null,null,null,null,null,0,null," "," "," "," "," "," "," "," "," ",true]
[null,null,null,null,null,null,0,null," "," "," "," "," "," "," "," "," ",true]
[null,null,null,null,null,null,0,null," "," "," "," "," "," "," "," "," ",true]
[null,null,null,null,null,null,0,null," "," "," "," "," "," "," "," "," ",true]
[null,null,null,null,null,null,0,null," "," "," "," "," "," "," "," "," ",true]
[null,null,null,null,null,null,0,null," "," "," "," "," "," "," "," "," ",true]
[null,null,null,null,null,null,0,null," "," "," "," "," "," "," "," "," ",true]
[null,null,null,null,null,null,0,null," "," "," "," "," "," "," "," "," ",true]
[null,null,null,null,null,null,0,null," "," "," "," "," "," "," "," "," ",true]
[null,null,null,null,null,null,0,null," "," "," "," "," "," "," "," "," ",true]
[null,null,null,null,null,null,0,null," "," "," "," "," "," "," "," "," ",true]
[null,null,null,null,null,null,0,null," "," "," "," "," "," "," "," "," ",true]
[null,null,null,null,null,null,0,null," "," "," "," "," "," "," "," "," ",true]
[null,null,null,null,null,null,0,null," "," "," "," "," "," "," "," "," ",true]
[null,null,null,null,null,null,0,null,{"$f":"IF(AND(H394>9999,H394<20000),F394,\" \")","v":" "},{"$f":"IF(AND(H394>19999,H394<30000),F394,\" \")","v":" "},{"$f":"IF(AND($H394>29999,$H394<40000),F394,\" \")","v":" "},{"$f":"IF(AND($H394>39999,$H394<50000),F394,\" \")","v":" "},{"$f":"IF(AND($H394>49999,$H394<60000),F394,\" \")","v":" "},{"$f":"IF(AND($H394>59999,$H394<70000),F394,\" \")","v":" "},{"$f":"IF(AND($H394>69999,$H394<80000),F394,\" \")","v":" "},{"$f":"IF(AND($H394>89999,$H394<100000),F394,\" \")","v":" "},{"$f":"IF(AND($H394>79999,$H394<90000),F394,\" \")","v":" "},true]
[null,null,null,null,null,null,{"$f":"F395-D395","v":0},null," "," "," "," "," "," "," "," "," ",{"$f":"ISBLANK(F395)","v":true}]
[null,null,null,null,null,null,0,null," "," "," "," "," "," "," "," "," ",true]
[null,null,null,null,null,null,0,null," "," "," "," "," "," "," "," "," ",true]
[null,null,null,null,null,null,0,null," "," "," "," "," "," "," "," "," ",true]
[null,null,null,null,null,null,0,null," "," "," "," "," "," "," "," "," ",true]
[null,null,null,null,null,null,0,null," "," "," "," "," "," "," "," "," ",true]
[null,null,null,null,null,null,0,null," "," "," "," "," "," "," "," "," ",true]
[null,null,null,null,null,null,0,null," "," "," "," "," "," "," "," "," ",true]
[null,null,null,null,null,null,0,null," "," "," "," "," "," "," "," "," ",true]
[null,null,null,null,null,null,0,null," "," "," "," "," "," "," "," "," ",true]
[null,null,null,null,null,null,0,null," "," "," "," "," "," "," "," "," ",true]
[null,null,null,null,null,null,0,null," "," "," "," "," "," "," "," "," ",true]
[null,null,null,null,null,null,0,null," "," "," "," "," "," "," "," "," ",true]
[null,null,null,null,null,null,0,null," "," "," "," "," "," "," "," "," ",true]
[null,null,null,null,null,null,0,null," "," "," "," "," "," "," "," "," ",true]
[null,null,null,null,null,null,0,null," "," "," "," "," "," "," "," "," ",true]
[null,null,null,null,null,null,0,null," "," "," "," "," "," "," "," "," ",true]
[null,null,null,null,null,null,0,null," "," "," "," "," "," "," "," "," ",true]
[null,null,null,null,null,null,0,null," "," "," "," "," "," "," "," "," ",true]
[null,null,null,null,null,null,0,null," "," "," "," "," "," "," "," "," ",true]
[null,null,null,null,null,null,0,null," "," "," "," "," "," "," "," "," ",true]
[null,null,null,null,null,null,0,null," "," "," "," "," "," "," "," "," ",true]
[null,null,null,null,null,null,0,null," "," "," "," "," "," "," "," "," ",true]
[null,null,null,null,null,null,0,null," "," "," "," "," "," "," "," "," ",true]
[null,null,null,null,null,null,0,null," "," "," "," "," "," "," "," "," ",true]
[null,null,null,null,null,null,0,null," "," "," "," "," "," "," "," "," ",true]
[null,null,null,null,null,null,0,null," "," "," "," "," "," "," "," "," ",true]
[null,null,null,null,null,null,0,null," "," "," "," "," "," "," "," "," ",true]
[null,null,null,null,null,null,0,null," "," "," "," "," "," "," "," "," ",true]
[null,null,null,null,null,null,0,null," "," "," "," "," "," "," "," "," ",true]
[null,null,null,null,null,null,0,null," "," "," "," "," "," "," "," "," ",true]
[null,null,null,null,null,null,0,null," "," "," "," "," "," "," "," "," ",true]
[null,null,null,null,null,null,0,null," "," "," "," "," "," "," "," "," ",true]
[null,null,null,null,null,null,0,null," "," "," "," "," "," "," "," "," ",true]
[null,null,null,null,null,null,0,null," "," "," "," "," "," "," "," "," ",true]
[null,null,null,null,null,null,0,null," "," "," "," "," "," "," "," "," ",true]
[null,null,null,null,null,null,0,null," "," "," "," "," "," "," "," "," ",true]
[null,null,null,null,null,null,0,null," "," "," "," "," "," "," "," "," ",true]
[null,null,null,null,null,null,0,null," "," "," "," "," "," "," "," "," ",true]
[null,null,null,null,null,null,0,null," "," "," "," "," "," "," "," "," ",true]
[null,null,null,null,null,null,0,null," "," "," "," "," "," "," "," "," ",true]
[null,null,null,null,null,null,0,null," "," "," "," "," "," "," "," "," ",true]
[null,null,null,null,null,null,0,null," "," "," "," "," "," "," "," "," ",true]
[null,null,null,null,null,null,0,null," "," "," "," "," "," "," "," "," ",true]
[null,null,null,null,null,null,0,null," "," "," "," "," "," "," "," "," ",true]
[null,null,null,null,null,null,0,null," "," "," "," "," "," "," "," "," ",true]
[null,null,null,null,null,null,0,null," "," "," "," "," "," "," "," "," ",true]
[null,null,null,null,null,null,0,null," "," "," "," "," "," "," "," "," ",true]
[null,null,null,null,null,null,0,null," "," "," "," "," "," "," "," "," ",true]
[null,null,null,null,null,null,0,null," "," "," "," "," "," "," "," "," ",true]
[null,null,null,null,null,null,0,null," "," "," "," "," "," "," "," "," ",true]
[null,null,null,null,null,null,0,null," "," "," "," "," "," "," "," "," ",true]
[null,null,null,null,null,null,0,null," "," "," "," "," "," "," "," "," ",true]
[null,null,null,null,null,null,0,null," "," "," "," "," "," "," "," "," ",true]
[null,null,null,null,null,null,0,null," "," "," "," "," "," "," "," "," ",true]
[null,null,null,null,null,null,0,null," "," "," "," "," "," "," "," "," ",true]
[null,null,null,null,null,null,0,null," "," "," "," "," "," "," "," "," ",true]
[null,null,null,null,null,null,0,null," "," "," "," "," "," "," "," "," ",true]
[null,null,null,null,null,null,0,null," "," "," "," "," "," "," "," "," ",true]
[null,null,null,null,null,null,0,null," "," "," "," "," "," "," "," "," ",true]
[null,null,null,null,null,null,0,null," "," "," "," "," "," "," "," "," ",true]
[null,null,null,null,null,null,0,null," "," "," "," "," "," "," "," "," ",true]
[null,null,null,null,null,null,0,null," "," "," "," "," "," "," "," "," ",true]
[null,null,null,null,null,null,0,null,{"$f":"IF(AND(H458>9999,H458<20000),F458,\" \")","v":" "},{"$f":"IF(AND(H458>19999,H458<30000),F458,\" \")","v":" "},{"$f":"IF(AND($H458>29999,$H458<40000),F458,\" \")","v":" "},{"$f":"IF(AND($H458>39999,$H458<50000),F458,\" \")","v":" "},{"$f":"IF(AND($H458>49999,$H458<60000),F458,\" \")","v":" "},{"$f":"IF(AND($H458>59999,$H458<70000),F458,\" \")","v":" "},{"$f":"IF(AND($H458>69999,$H458<80000),F458,\" \")","v":" "},{"$f":"IF(AND($H458>89999,$H458<100000),F458,\" \")","v":" "},{"$f":"IF(AND($H458>79999,$H458<90000),F458,\" \")","v":" "},true]
[null,null,null,null,null,null,{"$f":"F459-D459","v":0},null," "," "," "," "," "," "," "," "," ",{"$f":"ISBLANK(F459)","v":true}]
[null,null,null,null,null,null,0,null," "," "," "," "," "," "," "," "," ",true]
[null,null,null,null,null,null,0,null," "," "," "," "," "," "," "," "," ",true]
[null,null,null,null,null,null,0,null," "," "," "," "," "," "," "," "," ",true]
[null,null,null,null,null,null,0,null," "," "," "," "," "," "," "," "," ",true]
[null,null,null,null,null,null,0,null," "," "," "," "," "," "," "," "," ",true]
[null,null,null,null,null,null,0,null," "," "," "," "," "," "," "," "," ",true]
[null,null,null,null,null,null,0,null," "," "," "," "," "," "," "," "," ",true]
[null,null,null,null,null,null,0,null," "," "," "," "," "," "," "," "," ",true]
[null,null,null,null,null,null,0,null," "," "," "," "," "," "," "," "," ",true]
[null,null,null,null,null,null,0,null," "," "," "," "," "," "," "," "," ",true]
[null,null,null,null,null,null,0,null," "," "," "," "," "," "," "," "," ",true]
[null,null,null,null,null,null,0,null," "," "," "," "," "," "," "," "," ",true]
[null,null,null,null,null,null,0,null," "," "," "," "," "," "," "," "," ",true]
[null,null,null,null,null,null,0,null," "," "," "," "," "," "," "," "," ",true]
[null,null,null,null,null,null,0,null," "," "," "," "," "," "," "," "," ",true]
[null,null,null,null,null,null,0,null," "," "," "," "," "," "," "," "," ",true]
[null,null,null,null,null,null,0,null," "," "," "," "," "," "," "," "," ",true]
[null,null,null,null,null,null,0,null," "," "," "," "," "," "," "," "," ",true]
[null,null,null,null,null,null,0,null," "," "," "," "," "," "," "," "," ",true]
[null,null,null,null,null,null,0,null," "," "," "," "," "," "," "," "," ",true]
[null,null,null,null,null,null,0,null," "," "," "," "," "," "," "," "," ",true]
[null,null,null,null,null,null,0,null," "," "," "," "," "," "," "," "," ",true]
[null,null,null,null,null,null,0,null," "," "," "," "," "," "," "," "," ",true]
[null,null,null,null,null,null,0,null," "," "," "," "," "," "," "," "," ",true]
[null,null,null,null,null,null,0,null," "," "," "," "," "," "," "," "," ",true]
[null,null,null,null,null,null,0,null," "," "," "," "," "," "," "," "," ",true]
[null,null,null,null,null,null,0,null," "," "," "," "," "," "," "," "," ",true]
[null,null,null,null,null,null,0,null," "," "," "," "," "," "," "," "," ",true]
[null,null,null,null,null,null,0,null," "," "," "," "," "," "," "," "," ",true]
[null,null,null,null,null,null,0,null," "," "," "," "," "," "," "," "," ",true]
[null,null,null,null,null,null,0,null," "," "," "," "," "," "," "," "," ",true]
[null,null,null,null,null,null,0,null," "," "," "," "," "," "," "," "," ",true]
[null,null,null,null,null,null,0,null," "," "," "," "," "," "," "," "," ",true]
[null,null,null,null,null,null,0,null," "," "," "," "," "," "," "," "," ",true]
[null,null,null,null,null,null,0,null," "," "," "," "," "," "," "," "," ",true]
[null,null,null,null,null,null,0,null," "," "," "," "," "," "," "," "," ",true]
[null,null,null,null,null,null,0,null," "," "," "," "," "," "," "," "," ",true]
[null,null,null,null,null,null,0,null," "," "," "," "," "," "," "," "," ",true]
[null,null,null,null,null,null,0,null," "," "," "," "," "," "," "," "," ",true]
[null,null,null,null,null,null,0,null," "," "," "," "," "," "," "," "," ",true]
[null,null,null,null,null,null,0,null," "," "," "," "," "," "," "," "," ",true]
[null,null,null,null,null,null,0,null," "," "," "," "," "," "," "," "," ",true]
[null,null,null,null,null,null,0,null," "," "," "," "," "," "," "," "," ",true]
[null,null,null,null,null,null,0,null," "," "," "," "," "," "," "," "," ",true]
[null,null,null,null,null,null,0,null," "," "," "," "," "," "," "," "," ",true]
[null,null,null,null,null,null,0,null," "," "," "," "," "," "," "," "," ",true]
[null,null,null,null,null,null,0,null," "," "," "," "," "," "," "," "," ",true]
[null,null,null,null,null,null,0,null," "," "," "," "," "," "," "," "," ",true]
[null,null,null,null,null,null,0,null," "," "," "," "," "," "," "," "," ",true]
[null,null,null,null,null,null,0,null," "," "," "," "," "," "," "," "," ",true]
[null,"Teilsummen der geplanten Flächen",null,null,null,{"$f":"SUM(I510:Q510)","v":0},null,null,{"$f":"SUBTOTAL(9,I10:I509)","v":0},0,0,0,0,0,0,0,0,1]
[null,"Teilsummen der genehmigten Flächen1",null,{"$f":"SUBTOTAL(9,D10:D509)","v":0},null,null,null,null,null,null,null,null,null,null,null,null,null,1]
[null,"Differenz",null,null,null,null,{"$f":"SUM(I512:N512)","v":0},null,{"$f":"SUM(I510)-I511","v":0},0,0,0,0,0,null,null,null,1]
[null,null,null,null,null,null,null,null,null,null,null,null,null,null,null,null,null,1]
[null,null,null,null,null,"Summe NUF 1 - 6",null,{"$f":"SUM($I510:$N510)","v":0},null,"Summe NUF 1 - 7",null,{"$f":"SUM($I510:$O510)","v":0},null,"Summe VF und TF",null,{"$f":"SUM($P510:$Q510)","v":0},null,1]
[]
[]
[null,"Aufgestellt:"]
[]
[null,"(LBB Niederlassung)"]
[null,null,null,"Dienststelle",null,null,null,null,"Datum, Unterschrift, Amtsbezeichnung"]
[]
[null,"Ausfüllhinweis:"]
[null,"In grau hinterlegten Feldern ist eine Eingabe erforderlich."]
[null,"Zu Beginn ist die Schaltfläche \"leere\" zu tätigen und zum Schluss die Schaltfläche \"Fertig\""]
[null,"1 Anerkannte und genehmigte Fläche aus Muster D 1.4, Teilflächen der NUF 1-6 mittels NC aufschlüsseln und ermitteln"]

{"sheet":"NC-Codes (numerisch)","index":1,"n_rows":1470,"n_cols":2,"rows_kept":1470,"cut":false,"hidden":false,"merged":[]}
["Nr.","Bezeichnung"]
[1,"Wohnen und Aufenthalt"]
[11,"Wohnräume"]
[111,"Wohnräume"]
[1111,"Wohnraum/ Schlafraum"]
[11111,"Wohnraum/ Schlafraum"]
[11112,"Wohnraum/ Schlafraum mit RLT 1"]
[1112,"Küche"]
[11121,"Küche in Wohnung"]
[11122,"Küche in Wohnung mit RLT 1"]
[1113,"Diele"]
[11131,"Diele"]
[11132,"Diele mit RLT 1"]
[112,"Internate, Wohnheime, Beherbergungsstätten"]
[1121,"Ein-/Zweibettzimmer"]
[11211,"Ein-/Zweibettzimmer"]
[11212,"Ein-/Zweibettzimmer mit Waschtisch"]
[11213,"Ein-/Zweibettzimmer mit RLT 1"]
[11214,"Ein-/Zweibettzimmer mit Waschtisch und RLT 1"]
[1122,"Mehrbettzimmer"]
[11221,"Mehrbettwohn-/ schlafraum"]
[11222,"Mehrbettwohn-/ schlafraum mit RLT 1"]
[12,"Gemeinschaftsräume"]
[121,"Aufenthaltsräume"]
[1211,"Aufenthaltsraum"]
[12111,"Aufenthaltsraum"]
[12112,"Aufenthaltsraum mit RLT 1"]
[12113,"Aufenthaltsraum Raumklasse II (OP-Bereich)"]
[1212,"Aufenthaltsraum mit Teeküche"]
[12121,"Aufenthaltsraum mit Teeküche"]
[12122,"Aufenthaltsraum mit Teeküche und  RLT 1"]
[12123,"Aufenthaltsraum mit Teeküche und  RLT 3"]
[122,"Bereitschaftsräume"]
[1221,"Bereitschaftsraum ohne Sicherheitsanforderungen"]
[12211,"Bereitschaftsraum"]
[12212,"Bereitschaftsraum mit Waschtisch"]
[12213,"Bereitschaftsraum mit RLT 1"]
[12214,"Bereitschaftsraum mit  Waschtisch und RLT 1"]
[1222,"Bereitschaftsraum mit Sicherheitsanforderungen"]
[12221,"Bereitschaftsraum mit Sicherheitsanforderungen und RLT 1"]
[123,"Kindertagesstätte"]
[1231,"Kinderspielraum"]
[12311,"Kinderspielraum"]
[12312,"Kinderspielraum mit  RLT 1"]
[1232,"Kinderschlafraum"]
[12321,"Kleinkindschlafen"]
[12322,"Kleinkindschlafen mit RLT 1"]
[13,"Pausenräume/ -hallen"]
[131,"Pausenräume"]
[1311,"Pausenraum/ -fläche"]
[13111,"Pausenfläche"]
[13112,"Pausenfläche mit  RLT 1"]
[1312,"Teeküche"]
[13121,"Teeküche (ohne Aufenthalt)"]
[13122,"Teeküche (ohne Aufenthalt) mit RLT 1"]
[132,"Pausenhallen/ Wandelhallen"]
[1321,"Pausenhalle"]
[13211,"Pausenhalle"]
[13212,"Pausenhalle mit  RLT 1"]
[1322,"Wandelhalle"]
[13221,"Wandelhalle"]
[13222,"Wandelhalle mit RLT 1"]
[133,"Ruheräume"]
[1331,"Ruheraum allgemein"]
[13311,"Ruheraum"]
[13312,"Ruheraum mit Waschtisch"]
[13313,"Ruheraum mit RLT 1"]
[13314,"Ruheraum mit Waschtisch u. RLT 1"]
[1332,"Ruheraum im Gesundheitsbereich"]
[13321,"Patientenruheraum"]
[13322,"Patientenruheraum mit RLT 1"]
[14,"Warteräume"]
[141,"Warteräume/ Warteflächen"]
[1411,"Warteraum"]
[14111,"Warteraum/ Wartefläche"]
[14112,"Warteraum/ Wartefläche mit RLT 1"]
[14113,"Warteraum/ Wartefläche mit bes. bauk./ tech. Anf."]
[14114,"Warteraum/ Wartefläche mit bes. bauk./ tech. Anf. und RLT 1"]
[14115,"Warteraum/ Wartefläche mit bes. bauk./ tech. Anf. und RLT 2"]
[142,"Wartehallen"]
[1421,"Wartehalle"]
[14211,"Wartehalle"]
[14212,"Wartehalle mit RLT 1"]
[14213,"Wartehalle mit bes. bauk./ tech. Anf."]
[14214,"Wartehalle mit bes. bauk./ tech. Anf. und RLT 1"]
[14215,"Wartehalle mit bes. bauk./ tech. Anf. und RLT 2"]
[15,"Speiseräume"]
[151,"Speiseräume/ Speisesaal"]
[1511,"Speiseraum"]
[15111,"Speiseraum"]
[15112,"Speiseraum mit RLT 1"]
[1512,"Speisesaal"]
[15121,"Speisesaal"]
[15122,"Speisesaal mit RLT 1"]
[152,"Cafeteria"]
[1521,"Cafeteria"]
[15211,"Cafeteria"]
[15212,"Cafeteria mit RLT 1"]
[16,"Hafträume"]
[161,"Einzel-/ Gruppenhafträume"]
[1611,"Einzelhaftraum"]
[16111,"Einzelhaftraum"]
[16112,"Einzelhaftraum mit RLT 1"]
[16113,"Haftraum besonders gesichert mit RLT 3"]
[1612,"Gruppenhaftraum"]
[16121,"Gemeinschaftshaftraum"]
[16122,"Gemeinschaftshaftraum mit RLT 1"]
[1613,"besonderer Haftraum"]
[16131,"Verwahrraum mit RLT 1"]
[16132,"Ausnüchterungszelle mit RLT 3"]
[16133,"Haftsprechraum mit RLT 1"]
[16134,"Vorraum für besonders gesicherten Haftraum mit RLT 1"]
[2,"Büroarbeit"]
[21,"Büroräume"]
[211,"allgem. Büroräume, Arbeitsplatzflächen"]
[2111,"Büroraum"]
[21111,"Büroraum"]
[21112,"Büroraum mit RLT1"]
[21113,"Einzelarbeitsplatzfläche"]
[21114,"Einzelarbeitsplatzfläche mit RLT 1"]
[21115,"Büro im Küchenbereich mit RLT 1"]
[2112,"Büroraum mit Sicherheitsanforderungen"]
[21121,"Büro mit Sicherheitsanforderungen und RLT 2"]
[21122,"Büro mit besonderen Sicherheitsanforderungen und RLT 2"]
[212,"Büroräume/ Diensträume, Fläche für spezielle Arbeitsplätze"]
[2121,"Büroraum für spezielle Arbeitsplätze"]
[21211,"Schreibdienst"]
[21212,"Sekretariat"]
[21213,"Büroraum mit manuellem/ experimentellem Arbeitsplatz"]
[21214,"Büroraum mit manuellem/ experimentellem Arbeitsplatz und RLT 1"]
[21215,"Büroraum mit Archivfunktion"]
[21216,"Büroraum mit Archivfunktion und RLT 1"]
[21217,"Büroraum mit Materialausgabe"]
[21218,"Büroraum mit Materialausgabe und RLT 1"]
[21219,"Dolmetscherraum/-kabine mit RLT 1"]
[2122,"Einsatzzentrale"]
[21221,"Funkzentrale mit RLT 2"]
[21222,"Einsatzzentrale"]
[21223,"Einsatzzentrale mit RLT 1"]
[21224,"Einsatzzentrale gesichert mit RLT 2"]
[21225,"Einsatzzentrale mit hygienischen Anforderungen"]
[21226,"Einsatzzentrale mit hygienischen Anf. und RLT 1"]
[21227,"Einsatzzentrale mit hygienischen Anf. und RLT2"]
[213,"Telekommunikationsräume"]
[2131,"Fernsprechraum"]
[21311,"Fernsprechraum/-kabine"]
[21312,"Fernsprechvermittlungsraum"]
[21313,"Fernsprechvermittlungsraum mit RLT 1"]
[21314,"Krypto Raum / Datenübertragung verschlüsselt mit RLT 2"]
[22,"Großraumbüros"]
[221,"allgem. Großraumbüro"]
[2211,"Großraumbüro"]
[22111,"Großraumbüro"]
[22112,"Großraumbüro mit RLT 1"]
[22113,"Großraumbüro mit Schalter und RLT 2"]
[23,"Besprechungsräume"]
[231,"Sitzungsräume"]
[2311,"Konferenzraum"]
[23111,"Konferenzraum"]
[23112,"Konferenzraum mit bes. tech. Anf. und RLT 1"]
[2312,"Konferenzsaal"]
[23121,"Gerichtssaal"]
[23122,"Gerichtssaal mit RLT 1"]
[23123,"Parlamentssaal mit RLT 3"]
[232,"Besprechungsräume/ -flächen"]
[2321,"Gruppenbesprechungsraum"]
[23211,"Besprechungsraum/ Kommunikationsfläche"]
[23212,"Besprechungsraum mit RLT 1"]
[2322,"Besprechungsraum mit Sicherheitsanforderungen"]
[23221,"Besprechungsraum mit Sicherheitsanforderungen und RLT 2"]
[2323,"Einzelbesprechungsraum"]
[23231,"Sprechzimmer"]
[23232,"Sprechzimmer mit RLT 1"]
[23233,"Kindgerechter Vernehmungsraum mit RLT 1"]
[24,"Konstruktionsräume"]
[241,"Zeichenräume"]
[2411,"Konstruktionsraum"]
[24111,"Konstruktionsraum"]
[24112,"Konstruktionsraum mit RLT 1"]
[25,"Schalterräume"]
[251,"Kassenräume"]
[2511,"Kassenraum"]
[25111,"Zahlstelle/Kassenraum"]
[25112,"Zahlstelle/Kassenraum mit RLT 1"]
[25113,"Kartenschalter"]
[25114,"Kartenschalter mit RLT 1"]
[26,"Aufsichtsräume"]
[261,"Aufsichtsräume"]
[2611,"Aufsichtsraum"]
[26111,"Aufsichtsraum"]
[26112,"Aufsichtsraum mit RLT 1"]
[26113,"Pförtnerraum"]
[26114,"Pförtnerraum mit RLT 1"]
[26115,"Wachraum mit RLT 2"]
[2612,"Aufsichtsraum mit Sicherheitsanforderungen"]
[26121,"Aufsichtsraum mit Überfallmeldeanlage und RLT 1"]
[26122,"Pförtner/ Wache mit RLT 2"]
[26123,"Haftaufsichtsraum mit RLT 2"]
[262,"Wachräume mit Wächterkontrollanlagen und Signalanlagen (nur im med. Bereich, ansonsten Auf"]
[2621,"Patientenüberwachungsraum"]
[26211,"Patientenüberwachungsraum mit RLT 1"]
[26212,"Patientenüberwachungsraum mit bes. Anf. und RLT 3"]
[27,"Bürogeräteräume"]
[271,"Vervielfältigungsräume"]
[2711,"Druckerraum"]
[27111,"Fotokopierraum / Druckerraum"]
[27112,"Fotokopierraum / Druckerraum mit RLT 1"]
[27113,"Plotterraum"]
[27114,"Plotterraum mit RLT 1"]
[27115,"Rapid-Prototyping (3D-Drucker) mit RLT 1"]
[272,"Filmbearbeitungsräume"]
[2721,"Filmbearbeitung"]
[27211,"Filmbearbeitungs- / Schneideraum mit RLT 1"]
[27212,"Filmmagazin-/-laderaum mit RLT 1"]
[27213,"Dunkelkammer mit RLT 1"]
[3,"Produktion, Hand- und Maschinenarbeit, Forschung und Entwicklung"]
[31,"Werkhallen"]
[311,"Produktionshallen"]
[3111,"Produktionshalle"]
[31111,"Produktionshalle für Grundstoffe"]
[31112,"Produktionshalle für Investitions- und Versorgungsgüter"]
[31113,"Produktionshalle für Nahrungs- und Genussmittel"]
[312,"Instandsetzungs-/ Wartungshallen"]
[3121,"Instandsetzungshalle"]
[31211,"Instandsetzungs-/ Wartungshalle"]
[313,"Forschungs- und Entwicklungshalle für Ingenieurwissenschaften"]
[3131,"Technologische Versuche"]
[31311,"Technologische Versuchshalle mit RLT 2"]
[314,"Versuchs-/ Experimentierhallen für Naturwissenschaften"]
[3141,"Physik"]
[31411,"Halle für physikalische Versuche mit RLT 2"]
[3142,"Chemie"]
[31421,"Halle für chemische Versuche mit RLT2"]
[315,"Versuchs-/ Experimentierhallen mit Reinraumklassifizierung"]
[3151,"Reinräume"]
[31511,"Reinraumklasse bis 100000"]
[31512,"Reinraumklasse bis 10000"]
[31513,"Reinraumklasse bis 1000"]
[31514,"Reinraumklasse bis 100"]
[31515,"Reinraumklasse bis 10"]
[319,"Sonderversuchshalle"]
[3191,"Sonderversuchshalle"]
[31911,"Sonderversuchshalle"]
[32,"Werkstätten (nach DIN: Produktion, Entwicklung, Instandsetzung, Lehre (nicht Ausbildung) und Forschung)"]
[321,"Produktion"]
[3211,"Metall"]
[32111,"Blechbearbeitung, Montage-, Stahlbau"]
[32112,"Schlosserei, Härterei, Schmiede"]
[32113,"Gießerei, Schweißerei"]
[32114,"Werkstatt Metall (fein)"]
[32115,"Werkstatt Metall (fein) mit fest eingebauten Einrichtungen"]
[32116,"Laser-Schneide-Werkstatt"]
[3212,"Elektrotechnik"]
[32121,"Werkstatt Elektrotechnik"]
[3213,"Oberflächenbehandlung"]
[32131,"Werkstatt Oberflächenbehandlung"]
[32132,"Werkstatt Oberflächenbehandlung mit Sonderabsaugung"]
[3214,"Holz/ Kunststoff"]
[32141,"Werkstatt Holz/ Kunststoff"]
[32142,"Werkstatt Holz/ Kunststoff mit Sonderabsaugung"]
[324,"Räume für Gesundheits- und Körperpflege"]
[3241,"Räume für Körperpflege"]
[32411,"Frisör-/ Kosmetikarbeitsraum"]
[3242,"Werkstätten für Prothetik"]
[32421,"Prothetische / Dental-Werkstatt mit Sonderabsaugung"]
[325,"Wartungsstationen/ Instandsetzung"]
[3251,"Instandsetzung"]
[32511,"Kfz-Werkstatt mit Sonderabsaugung"]
[3252,"Wartungsstation"]
[32521,"Hausmeisterwerkstatt"]
[32522,"Kfz-Waschhalle"]
[33,"Technologische Labors"]
[331,"Materialprüf-/ Materialbearbeitungslabor"]
[3311,"Materialprüf-/ Materialbearbeitungslabor"]
[33111,"Technologisches Labor"]
[33112,"Technologisches Labor mit erhöhten Anforderungen"]
[33113,"Technologisches Labor mit Erschütterungsschutz"]
[33114,"Technologisches Labor mit zusätzlichen Anforderungen,"]
[33115,"Technologisches Labor mit Berstwänden"]
[332,"Licht-/ Schalltechnische Labore"]
[3321,"Labor für Lichttechnik"]
[33211,"Lichttechnisches Labor"]
[3322,"Labor für Schalltechnik"]
[33221,"Schalltechnisches Labor"]
[333,"Labor für mech. Verfahrenstechnik"]
[3331,"Labor für stationäre Maschinen"]
[33311,"Labor für stationäre Maschinen"]
[334,"Kriminaltechnische Labore"]
[3341,"Spurensicherung"]
[33411,"Kriminaltechnisches Labor"]
[33412,"Kriminaltechnisches Labor_Täter/ Opfer-Raum"]
[34,"Physikalische, physikalisch-technische, elektrotechnische Labors"]
[341,"Elektrotechnik/ Elektronische Labore (Raumlufttechnik Standard)"]
[3411,"Elektrotechnisches Labor"]
[34111,"Elektroniklabor mit RLT 2"]
[34112,"Elektroniklabor mit RLT 2 und Sondergase"]
[342,"Labore für Physik"]
[3421,"Physiklabor"]
[34211,"Physiklabor (einfaches physikalisches Messlabor)"]
[34212,"Physiklabor mit bes. Anforderungen"]
[34213,"Physiklabor mit besonderen RLT Anforderungen"]
[3422,"Physiklabor mit baukonstruktiven und technischen Anforderungen"]
[34221,"Physiklabor und Messraum mit elektromagnetischer Abschirmung"]
[34222,"Physiklabor und Messraum mit Erschütterungsschutz (NMR)"]
[34223,"Physiklabor und Messraum mit einfachem Strahlenschutz"]
[34224,"Physiklabor und Messraum mit erhöhtem Strahlenschutz und RLT-Anforderungen"]
[34225,"Physiklabor (Reinraum mit bes. RLT.-Anf.)"]
[3423,"Physikalischer Messraum"]
[34231,"Physikalischer Messraum mit besonderen RLT-Anforderungen"]
[34232,"Physikalischer Messraum mit besonderen RLT-Anforderungen und Medienversorgung"]
[34233,"Physikalischer Meß- und Wägeraum mit DV (physikalischer Messraum)"]
[34234,"Physikalischer Meß- und Wägeraum mit DV und RLT-Anforderungen"]
[3424,"Labor für Kernphysik"]
[34241,"Kernphysiklabor mit Dekontamination von Abwasser und Abluft"]
[35,"Chemische, bakteriologische, biologische Labore"]
[351,"Medizinische, biologische, chemische Labore"]
[3512,"biologisches Labor"]
[35121,"Anatomischer Präparierraum"]
[3513,"Chemisch/chemisch-technisches Labor"]
[35131,"Chemisch-technisches Labor mit bes. RLT-Anforderungen"]
[35132,"Chemisch-technisches Labor mit bes. RLT-Anf. und einf. Strahlenschutz"]
[3514,"Zentrifugenraum"]
[35141,"Zentrifugenraum, einfach"]
[352,"Labor für analytische und präparative Chemie"]
[3521,"Labor für analytische und präparative Chemie"]
[35211,"Labor für analytische Arbeiten"]
[35212,"Labor für analytisch-/ präparativ-chemische Arbeiten mit RLT 1"]
[35213,"Labor für analytisch- /präparativ-chemische Arbeiten mit RLT 2"]
[35214,"Labor für analytisch-/ präparativ-chemische Arbeiten mit Klimakonstanz und RLT 3"]
[35215,"Kälte-Labor"]
[353,"Biochemische Labore ohne Sicherheitsanforderungen gemäß GenTSV"]
[3531,"Labor mit zusätzlichen Hygieneanforderungen"]
[35311,"Labor mit Medienversorgung"]
[354,"Biochemische Labore mit Sicherheitsanforderungen gemäß GenTSV"]
[3541,"Biotech. Labor S1/S2"]
[35411,"Labor mit zusätzlichen Hygieneanforderungen"]
[35412,"Labor mit zusätzlichen Hygieneanforderungen und Medienversorgung"]
[35413,"Labor mit zusätzlichen hygienischen und besonderen RLT-Anforderungen"]
[3542,"Biotech. Labor S3"]
[35421,"Labor mit besonderen Hygieneanforderungen, Zugang über Schleuse ..."]
[35422,"Labor m. bes. Hygieneanf. / RLT-Anf. u. Schleuse"]
[35423,"Labor m. bes. Hygieneanf./ sep. RLT-Anlage u. Schleuse (S3)"]
[355,"Isotopenlabore"]
[3551,"Isotopenlabor mit Dekontamination"]
[35511,"Isotopenlabor mit Dekontamination von Abwasser und Abluft"]
[35512,"Isotopenlabor mit bes. baukonstruktiven und RLT-Anforderungen mit Schleuse"]
[35513,"Isotopenlabor mit Dekontamination von Abwasser u. Abluft u. bes. RLT-Anforderungen"]
[35514,"Isotopenlabor mit erhöhten baukonstruktiven und RLT-Anforderungen mit Schleuse"]
[356,"Brut-und Nährbodenräume"]
[3561,"ohne Anforderungen an Raumklima"]
[35611,"Brutschrankraum"]
[3562,"mit Anforderungen an Raumklima"]
[35621,"Klimakammer"]
[36,"Räume für Tierhaltung"]
[361,"Stallräume für Nutztiere"]
[3611,"Freilaufstall"]
[36111,"Raum für Stallhaltung"]
[362,"Stallräume für Versuchs- und kranke Tiere"]
[3621,"Stallraum für kranke Tiere"]
[36211,"Raum für Stallhaltung"]
[3622,"Versuchstierhaltung"]
[36221,"Tierhaltung experimentell"]
[36222,"Tierhaltung experimentell mit RLT 3"]
[363,"Räume für Käfighaltung"]
[3631,"Raum für Käfighaltung"]
[36311,"Raum für Käfighaltung"]
[3632,"Zwingerhaltung"]
[36321,"Hundezwinger"]
[36322,"Laufgang"]
[364,"Käfighaltung von Versuchs- und kranken Tieren"]
[3641,"Käfighaltung von kranken Tieren"]
[36411,"Käfighaltung"]
[36412,"Käfighaltung mit RLT 3"]
[3642,"Räume für Käfighaltung von Versuchstieren"]
[36421,"Käfighaltung  mit RLT-Anforderungen"]
[36422,"Käfighaltung mit RLT-Anforderungen u. Laborarbeitsplatz (hochhygienische Käfighaltung mit bes. RLT-Anforderungen)"]
[36423,"Käfighaltung mit RLT-Anforderungen und einfachem Strahlenschutz"]
[3643,"Käfighaltung SPF"]
[36431,"Käfighaltung  SPF mit Schleuse für IVC"]
[36432,"Käfighaltung SPF mit Schleuse (hochhygienische Käfighaltung mit bes. RLT-Anforderungen)"]
[365,"Räume für Beckenhaltung"]
[3651,"Aquarien"]
[36511,"Raum für Beckenhaltung"]
[366,"Tierpflege- und Futteraufbereitungsräume"]
[3661,"Tierpflegeraum"]
[36611,"Tierpflegeraum"]
[36612,"Tierpflegeraum mit RLT 1"]
[36613,"Wärmetherapie / Solarium mit RLT1"]
[36614,"Tierpflegeraum/Quarantäne"]
[36615,"Raum für Nassreinigung Tiere"]
[3662,"Futteraufbereitungsraum"]
[36621,"Futteraufbereitungsraum, einfache Ausführung"]
[36622,"Futteraufbereitungsraum"]
[367,"Milch-/Melkräume"]
[3671,"Melkraum"]
[36711,"Melkraum"]
[37,"Räume für Pflanzenzucht"]
[371,"Gewächshausräume"]
[3711,"Gewächshaus"]
[37111,"Gewächshaus"]
[37112,"Gewächshaus mit RLT1"]
[37113,"Pflanzenzuchtvorbereitungsraum"]
[37114,"Gewächshaus mit Pflanztischen"]
[372,"Gewächshausräume Experimentel"]
[3721,"Gewächshausraum Experimentel"]
[37211,"Gewächshaus experimentell mit besonderen klimatischen Anforderungen und RLT3"]
[37212,"Pflanzenzuchtraum experimentell (Raum mit Klimakammern bestückt)"]
[37213,"Klimakammer, RLT 2"]
[373,"Gewächshausräume mit Sicherheitsanforderungen gemäß GenTSV"]
[3731,"Gewächshausraum S1/ S2"]
[37311,"Gewächshausraum S1"]
[374,"Räume für Pilzkulturen"]
[3741,"Pilzzuchträume"]
[37411,"Pilzzuchtraum"]
[38,"gewerbliche Küchen"]
[381,"Voll- und Teilküchen, Backräume"]
[3811,"Vollküche"]
[38111,"Großküche mit Sonderabsaugung, Lüftungsdecke und RLT 1"]
[38112,"Regenerierküche (cook and chill) mit RLT 2"]
[3812,"Teilküche"]
[38121,"Küchen zur Speiseerwärmung mit RLT 1"]
[3813,"Backraum"]
[38131,"Backraum mit Sonderabsaugung und RLT 1"]
[382,"Vorbereitungsräume"]
[3821,"Küchenvorbereitungsraum"]
[38211,"Küchenvorbereitungsraum mit Lüftungsdecke und RLT 1"]
[383,"Speise-/ Getränkeausgaben"]
[3831,"Speise-/ Getränkeausgabefläche/ -raum"]
[38311,"Speiseausgabe/ Getränkeausgabe mit Sonderabsaugung und RLT 1"]
[384,"Geschirrrückgaben/ -spülräume in Küchen"]
[3841,"Geschirrrückgabe"]
[38411,"Geschirrrückgabe"]
[3842,"Spülraum"]
[38421,"Spülküche mit Rückgabeband, Lüftungsdecke und RLT 1"]
[38422,"Spülraum in Küchen mit Lüftungsdecke und RLT 1"]
[38423,"Wagenwäsche für Küche mit RLT 1"]
[39,"Sonderarbeitsräume"]
[391,"Hauswirtschafts- und Hausarbeitsräume"]
[3911,"Hauswirtschaftsraum"]
[39111,"Hauswirtschaftsraum"]
[3912,"Hauswirtschaftsraum Schule"]
[39121,"Hauswirtschaftsraum Schule"]
[392,"Räume für Wäschepflege/ Wäscherei"]
[3921,"Wäschereiraum"]
[39211,"Wäschereiraum"]
[39212,"Wäschereiraum mit Sonderabsaugung und RLT 1"]
[39213,"Stiefelwaschraum mit RLT 1"]
[39214,"Gesundheitswäscherei, Raumklasse II"]
[3922,"Wäschepflegeraum"]
[39221,"Wäschepflegeraum"]
[39222,"Wäschepflegeraum mit Waschbecken"]
[39223,"Wäschepflegeraum mit Waschbecken, Sonderabsaugung und  RLT 1"]
[3923,"Trockenraum"]
[39231,"Trocknungsraum für Kleidung mit RLT 2"]
[393,"Desinfektions-/ Sterilisationsräume von Labor- und medizinischem Gerät"]
[3931,"Desinfektions-/ Sterilisationsraum: Kleingeräte"]
[39311,"Instrumentenreinigungsraum mit RLT 1"]
[39312,"Aufbereitungsraum für medizintechnisches Gerät mit RLT 1"]
[39313,"Sterilisationsraum mit Sonderabsaugung und RLT 1"]
[39314,"Zentralsterilisation, Raumklasse II"]
[39315,"Geräteaufbereitung und -lager; Raumklasse II (OP-Bereich)"]
[3932,"Desinfektions-/ Sterilisationsraum: Großgeräte"]
[39321,"Käfigreinigung manuell mit RLT 1"]
[39322,"Käfigdesinfektion maschinell, rein, mit RLT 3"]
[39323,"Käfigdesinfektion maschinell, unrein, RLT1"]
[394,"Spül-/ Reinigungsräume"]
[3941,"Spül-/ Reinigungsraum allgemein"]
[39411,"Pferdezubehör/Melkzubehör"]
[3942,"Spül-/ Reinigungsraum für medizin-/ labortechnisches Material"]
[39421,"Spülraum im Labor mit RLT 3"]
[39422,"Spülraum mit Strahlenschutz und RLT 3"]
[395,"Räume für Bettenaufbereitung/ -reinigung/ -desinfektion"]
[3951,"Bettenreinigung/ -desinfektion"]
[39511,"Bettenreinigung manuell mit RLT 1"]
[39512,"Bettendesinfektion maschinell mit RLT 1"]
[3952,"Bettenaufbereitungsraum"]
[39521,"Bettenaufbereitungsraum mit RLT 1"]
[396,"Pflegearbeitsräume"]
[3961,"Pflegearbeitsraum rein/ unrein"]
[39611,"Pflegearbeitsraum rein, mit RLT 1"]
[39612,"Pflegearbeitsraum unrein, mit RLT 1"]
[39613,"Pflegestützpunkt mit RLT 1"]
[39614,"Pflegearbeitsraum rein mit bes. hygienischen Anf. und RLT 3"]
[39615,"Pflegearbeitsraum unrein mit Strahlenschutz, Sonderabsaugung"]
[397,"Vorbereitungsräume"]
[3971,"Vorbereitungsraum Labor"]
[39711,"Geräteraum Labor"]
[39712,"Vorbereitungsraum mit labortech. Einrichtungen und RLT 1"]
[39713,"Vorbereitungsraum Labor mit Strahlenschutz, Sonderabsaugung"]
[3972,"Vorbereitungsraum Lehre und Ausbildung"]
[39721,"Vorbereitungsraum Geisteswissenschaft"]
[39722,"Vorbereitungsraum Naturwissenschaft"]
[4,"Lagern, Verteilen und Verkaufen"]
[41,"Lager- und Vorratsräume"]
[411,"Lager- und Vorratsräume für Material, Gerät und Waren"]
[4111,"Lagerraum für Material"]
[41111,"einfacher Lagerraum"]
[41112,"Lagerraum"]
[41113,"Lagerraum mit RLT 1"]
[41114,"Lagerraum mit RLT 3"]
[41115,"Lagerraum mit bes. tech. Anforderungen"]
[41116,"Lagerraum für Putzmittel"]
[4112,"Lagerhallen, mittlere Hallenhöhe > 4,50 m"]
[41121,"einfache Lagerhalle"]
[41122,"Lagerhalle"]
[41123,"Hochregallager"]
[4113,"Lagerraum gesichert, Tresorräume"]
[41131,"Tresorraum"]
[41132,"Asservatenraum"]
[41133,"Asservatenraum mit RLT 1"]
[41134,"Lagerraum bes. gesichert mit RLT 2"]
[4115,"Erdlager"]
[41151,"Lagerraum für sterile Erde"]
[41152,"Pflanzentopflager mit Spüle und RLT 3"]
[4116,"Lagerraum Raumklasse II"]
[41161,"Sterilgutversorgungslager (Lager im OP-Bereich), Raumklasse II"]
[41162,"Medikamentenlager; Raumklasse II (OP-Bereich)"]
[4117,"Waffen- und Munitionslagerraum"]
[41171,"Waffenschließfächer mit Ladeecke"]
[41172,"Munitions-, Waffenlagerraum mit RLT 1"]
[412,"Lageräume für Lebensmittel ohne Kühlung; T>12°C"]
[4121,"Lagerraum"]
[41211,"Lagerraum für Milchtank"]
[41212,"Lagerraum für Lebensmittel mit RLT 1"]
[41213,"Lagerraum mit hygienischen Anforderungen und RLT 1"]
[413,"Isotopenlagerräume (Strahlenschutz)"]
[4131,"Lagerraum mit Strahlenschutz"]
[41311,"Lagerraum mit einfachen Strahlenschutz-Anforderungen"]
[41312,"Lagerraum mit höchsten Strahlenschutz-Anforderungen und Zugang über Schleuse"]
[414,"Sprengstofflager-/ Lösungsmittellagerräume"]
[4141,"Lagerraum für Sprengstoffe"]
[41411,"Lagerraum für Explosivstoffe"]
[4142,"Lagerraum für Chemikalien und Lösungsmittel"]
[41421,"Lagerraum für Chemikalien"]
[415,"Scheunen/ Futtermittellagerräume"]
[4151,"Futtermittellager"]
[41511,"Futtermittellager"]
[41512,"Futtermittellager mit Verarbeitung und RLT 1"]
[41513,"Futtermittellager mit bes. hygienischen Anf. und RLT 3"]
[42,"Archive, Sammlungsräume"]
[421,"Archive/ Registraturen"]
[4211,"Archiv"]
[42111,"Archiv"]
[42112,"Archiv mit RLT 1"]
[42113,"Archiv mit RLT 3"]
[42114,"Archiv Sicherheitsanforderungen und RLT 1"]
[4212,"Registratur"]
[42121,"Registratur"]
[42122,"Registratur mit Arbeitsplatz"]
[4213,"Sammlungsräume"]
[42131,"Sammlungsraum"]
[422,"Lehrmittelräume/ Buchmagazine"]
[4221,"Magazin"]
[42211,"Magazin"]
[42212,"Magazin mit Klimakonstanz"]
[43,"Kühlräume"]
[431,"Kühlräume für Lebensmittel"]
[4311,"Lebensmittelkühlraum"]
[43111,"Lebensmittelkühlraum"]
[43112,"Lebensmittelauftaukühlraum"]
[43113,"Kühlraum Cook and Chill"]
[43114,"Wildkammer"]
[4312,"Lebensmitteltiefkühlraum"]
[43121,"Lebensmitteltiefkühlraum"]
[432,"Kühlräume für medizinische Zwecke"]
[4321,"Kühlraum"]
[43211,"Kühlraum für medizinische Zwecke"]
[4322,"Tiefkühlraum"]
[43221,"Kühlzelle für medizinische Zwecke"]
[433,"Kühlräume für wissenschaftliche Zwecke"]
[4331,"Kühlraum"]
[43311,"Kühlraum für wissenschaftliche Zwecke (nur Kühlung)"]
[4332,"Tiefkühlraum"]
[43321,"Kühlraum für wissenschaftliche Zwecke (Tiefkühlung)"]
[434,"Räume für Leichen/ Tierkadaver"]
[4341,"Kühlraum für Leichen"]
[43411,"Leichenraum für Anatomie"]
[43412,"Leichenkühlraum"]
[4342,"Kühlraum für Tierkadaver"]
[43421,"Kadaverraum mit RLT 2"]
[44,"Annahme- und Ausgaberäume"]
[441,"Sortier- und Verteilräume"]
[4411,"Annahme- und Ausgaberaum"]
[44111,"Annahme- und Ausgaberaum"]
[44112,"Annahme- und Ausgaberaum mit RLT 1"]
[44113,"Poststelle"]
[4412,"Lebensmittel"]
[44121,"Warenannahme Lebensmittel (Umpackraum)"]
[44122,"Warenannahme mit hygienischen Anf. (Lebensmittel)"]
[442,"Pack- und Versandräume"]
[4421,"Packraum"]
[44211,"Packraum"]
[44212,"Packraum mit RLT 1"]
[4422,"Versandraum"]
[44221,"Versandraum"]
[443,"Ver-/ Entsorgungsstützpunkte"]
[4431,"Versorgungsraum"]
[44311,"Versorgungsraum mit RLT 1"]
[44312,"Versorgungsraum mit Nassarbeitsplatz und RLT 1"]
[44313,"Versorgungsraum mit hygienischen Anf. und RLT 3"]
[44314,"Versorgungsraum Raumklasse II (OP-Bereich)"]
[4432,"Entsorgungsstützpunkt"]
[44321,"Entsorgungsraum mit RLT 1"]
[44322,"Entsorgungsraum mit Nassarbeitsplatz und RLT 1"]
[44323,"Entsorgungsraum mit hygienischen Anf. und RLT 3"]
[44324,"Entsorgungsraum mit bes. hygienischen Anf., Strahlenschutz und RLT 3"]
[44325,"Entsorgungsraum Raumklasse II (OP-Bereich)"]
[45,"Verkaufsräume"]
[451,"Geschäftsräume"]
[4511,"Großflächenverkaufsraum"]
[45111,"Supermarktverkaufsraum mit RLT 1"]
[45112,"Kaufhausverkaufsraum mit RLT 1"]
[45113,"Großmarkthallenverkaufsraum mit RLT 2"]
[452,"Ladenräume/ Kioske"]
[4521,"Ladenraum"]
[45211,"Ticket Schalter"]
[45212,"Ladenraum"]
[45213,"Thekenbereich"]
[45214,"Thekenbereich mit RLT 1"]
[4522,"Kiosk"]
[45221,"Kiosk mit RLT 1"]
[46,"Messeräume"]
[461,"Messehallen"]
[4611,"Messehalle"]
[46111,"Verkaufsausstellungsraum"]
[46112,"Messehalle mit RLT 1"]
[4612,"Musterraum"]
[46121,"Musterausstellungsraum"]
[46122,"Musterausstellungsraum mit RLT 1"]
[5,"Bildung, Unterricht und Kultur"]
[51,"Unterrichtsräume mit festem Gestühl"]
[511,"Hör-/Lehrsäle"]
[5111,"Hör-/Lehrsaal ansteigend mit Experimentierbühne"]
[51111,"Hör-/Lehrsaal anst. m. Exp.-Bühne und RLT 1"]
[51112,"Hör-/Lehrsaal anst. m. Exp.-Bühne, mit labortech. Anf. und RLT 1"]
[5112,"Hör-/Lehrsaal eben mit Experimentierbühne"]
[51121,"Hör-/Lehrsaal eben m. Exp.-Bühne und RLT 1"]
[51122,"Hör-/Lehrsaal eben m. Exp.-Bühne, mit labortech. Anf. und RLT 1"]
[5113,"Hör-/Lehrsaal ansteigend ohne Experimentierbühne"]
[51131,"Hör-/Lehrsaal anst. o. Exp.-Bühne und RLT 1"]
[51132,"Hör-/Lehrsaal anst. o. Exp.-Bühne, mit labortech. Anf. und RLT 1"]
[5114,"Hör-/Lehrsaal eben ohne Experimentierbühne"]
[51141,"Hör-/Lehrsaal eben o. Exp.-Bühne  und RLT 1"]
[51142,"Hör-/Lehrsaal eben o. Exp.-Bühne, mit labortech. Anf. und RLT 1"]
[52,"Allgemeine Unterrichts- und Übungsräume ohne festes Gestühl"]
[521,"Seminar-/ Unterrichtsräume"]
[5211,"Unterrichtsraum"]
[52111,"Seminar-/ Unterrichtsraum einfach"]
[52112,"Seminar-/ Unterrichtsraum mit Medien"]
[52113,"Seminar-/ Unterrichtsraum mit Medien und RLT 1"]
[52114,"Seminar-/ Unterrichtsraum Naturwissenschaften"]
[522,"Seminar-/ Unterrichtsgroßräume"]
[5221,"Unterrichtsgroßraum"]
[52211,"Seminar-/ Unterrichtsgroßraum"]
[52212,"Seminar-/ Unterrichtsgroßraum mit RLT 1"]
[523,"Übungs- und Arbeitsräume"]
[5231,"allgemeiner Übungs-/ Arbeitsraum"]
[52311,"Übungsraum"]
[52312,"Übungsraum mit RLT 1"]
[53,"Besondere Unterrichts- und Übungsräume ohne festes Gestühl"]
[531,"Werk- und Bastelräume, Hauswirtschaftsräume, Zeichensäle"]
[5311,"Zeichensaal"]
[53111,"Zeichensaal"]
[5312,"Textilarbeitsraum"]
[53121,"Textilarbeitsraum"]
[5313,"Werkraum"]
[53131,"Werkraum - Holz mit Sonderabsaugung"]
[5314,"Hauswirtschaftlicher Unterrichtsraum"]
[53141,"Hauswirtschaftlicher Unterrichtsraum"]
[532,"Räume für Grafik, Malerei und Bildhauerei"]
[5321,"Bildhauer"]
[53211,"Bildhauerklassenraum"]
[5322,"Modellierraum - Plastisches Gestalten"]
[53221,"Modellierraum - Plastisches Gestalten mit Sonderabsaugung"]
[533,"Sprachlabore/ EDV-Unterrichtsräume"]
[5331,"Computer Pool / EDV-Raum / CIP Pool"]
[53311,"Computer Pool/ CIP Pool mit RLT 2"]
[5332,"Sprachlabor"]
[53321,"Sprachlabore mit RLT 1"]
[534,"Räume und Übungszellen für Gesangs-, Sprach- und Instrumentalausbildung"]
[5341,"Raum für Musik-/Sprechunterricht"]
[53411,"Musik-/Sprechunterrichtsraum mit RLT 1"]
[535,"Verhaltensbeobachtungsräume"]
[5351,"Verhaltensbeobachtungsraum"]
[53511,"Verhaltensbeobachtungsraum"]
[536,"Naturwissenschaftlich / medizinische Übungsräume"]
[5361,"Physikalisch-technischer Übungsraum"]
[53611,"Übungsraum Naturwissenschaften"]
[53612,"Physikalisch-technischer Übungsraum mit RLT 1"]
[5362,"Chemisch- / Biologischer Übungsraum"]
[53621,"Biologischer Übungsraum mit RLT 1"]
[53622,"Chemischer Übungsraum mit RLT 1"]
[5363,"Medizinischer Übungsraum"]
[53631,"Zahnmedizinischer Übungsraum mit RLT 1"]
[53632,"Anatomischer Übungsraum mit RLT 1"]
[537,"Räume für Ausbildung (Raumlufttechnik enthalten)"]
[5371,"Ausbildung Bau/Steine/Erden"]
[53711,"Werkstatt Bau/ Steine/ Erden"]
[53712,"Werkstatt Bau/ Steine/ Erden mit Sonderabsaugung"]
[5372,"Ausbildung Drucktechnik"]
[53721,"Drucktechnikwerkstatt mit Sonderabsaugung"]
[5373,"Ausbildung Textil- und Ledertechnik"]
[53731,"Textil-/ Lederwerkstatt"]
[5374,"Ausbildung Holz- und Kunststofftechnik"]
[53741,"Werkstatt Holz/ Kunststoff"]
[5375,"Ausbildung Metalltechnik"]
[53751,"Werkstatt Metall mit Sonderabsaugung"]
[53752,"Werkstatt Feinmechanik mit Sonderabsaugung"]
[5376,"Ausbildung Elektro"]
[53761,"Werkstatt Elektro"]
[54,"Bibliotheksräume"]
[541,"Bibliotheksräume"]
[5411,"Allgem. Bibliotheksraum"]
[54111,"Bibliotheksraum"]
[54112,"Bibliotheksraum mit RLT 1"]
[5412,"Leseraum"]
[54121,"Leseraum mit RLT 1"]
[5413,"Katalograum"]
[54131,"Katalograum/ -fläche mit RLT 1"]
[5414,"Mediotheken"]
[54141,"Mediothekraum mit RLT 1"]
[5415,"Freihandbücherei"]
[54151,"Freihandstellfläche mit RLT 1"]
[55,"Sporträume"]
[551,"Sporthallen/ Mehrzweckhallen"]
[5511,"Halle für Turnen und Spiele"]
[55111,"Halle für Turnen und Spiele"]
[5512,"Mehrzweckhalle"]
[55121,"Mehrzweckhalle mit RLT 2"]
[552,"Sportübungsräume"]
[5521,"Gymnastikraum"]
[55211,"Sportübungsraum"]
[55212,"Sportübungsraum mit RLT 1"]
[55213,"Raum für Integrationstraining mit RLT 1"]
[55214,"Raum für Abwehr- und Zugriffstraining mit RLT 1"]
[5522,"Tanzraum"]
[55221,"Tanzraum mit RLT 1"]
[553,"Schießsporträume"]
[5531,"Schießsportraum"]
[55311,"Schießsportraum mit Medienunterstützung und RLT 1"]
[554,"Sondersporthallen"]
[5541,"Sporthalle"]
[55411,"Schwimmhalle mit RLT 1"]
[55412,"Eissporthalle mit RLT 2"]
[55413,"Radsporthalle mit RLT 1"]
[55414,"Reitsporthalle"]
[55415,"Kegelbahn mit RLT 1"]
[55416,"Sondersporthalle"]
[56,"Zuschauerräume"]
[561,"Zuschauerräume"]
[5611,"Zuschauerraum in Sport- und Mehrzweckhallen"]
[56111,"Zuschauerraum in Sport- und Mehrzweckhallen"]
[5612,"Zuschauerraum im Theater, Kino oder Konzerthaus"]
[56121,"Zuschauerraum in Kino, Theater- und Konzertsälen mit RLT 2"]
[57,"Bühnen-, Studioräume"]
[571,"Haupt-, Seiten-, Hinter-, Probebühnen,  Schnürböden"]
[5711,"Bühnenraum"]
[57111,"Bühnenraum Sporthalle"]
[57112,"Bühnenraum Theater mit RLT 2"]
[5712,"Probebühne"]
[57121,"Probebühne"]
[572,"Orchesterräume"]
[5721,"Räume für das Orchester"]
[57211,"Orchesterraum mit RLT 3"]
[57212,"Orchesterprobenraum mit RLT 3"]
[573,"Film-, Fernseh-, Rundfunkstudios"]
[5731,"Tonstudioraum"]
[57311,"Tonstudioraum mit RLT 3"]
[5732,"Bildstudioraum"]
[57321,"Bildstudioraum mit RLT 3"]
[58,"Ausstellungsräume"]
[581,"Ausstellungsräume für Museen, Galerien, Kunstausstellungen"]
[5811,"Museumsraum"]
[58111,"Museumsraum"]
[58112,"Museumsraum mit RLT 1"]
[58113,"Museumgroßraum mit RLT 3"]
[58114,"Museumsraum für Wechselausstellung mit RLT 3"]
[58115,"Museumsraum für lichtempfindliche Exponate mit RLT 3"]
[58116,"Museumsraum mit Tageslichtdecke und RLT 3"]
[58117,"Museumsraum mit Seitenlicht und RLT 3"]
[5812,"Galerie"]
[58121,"Künstleratelier"]
[582,"Lehr- und Schausammlungsräume"]
[5821,"Lehrsammlungsraum"]
[58211,"Lehr- und Schausammlungsraum"]
[5822,"Schausammlungsraum"]
[58221,"Ausstellungsraum/ -fläche"]
[59,"Sakralräume"]
[591,"Kirchen"]
[5911,"Kirchenräume"]
[59111,"Gottesdienstraum"]
[59112,"Andachtsraum"]
[59113,"Aussegnungsraum"]
[59114,"Aufbahrungsraum"]
[59115,"Sakristei"]
[59116,"Kreuzgang"]
[6,"Heilen und Pflegen"]
[61,"Räume für allgemeine Untersuchung und Behandlung"]
[611,"Räume für allgemeine Untersuchung und Behandlung"]
[6111,"U+B Raum"]
[61111,"U + B Raum/Arztsprechzimmer"]
[61112,"U + B Raum/Arztsprechzimmer mit Waschtisch"]
[61113,"U + B Raum mit Waschtisch und medizinischer Ausstattung"]
[61114,"U + B Raum mit Patienten WC und medizinischer Ausstattung und RLT 1"]
[61115,"U + B Vorbereitungsraum mit RLT 1"]
[61118,"U + B Raum mit Waschtisch und RLT 1"]
[6112,"U+B Raum als operativer Eingriffraum; Raumklasse II"]
[61121,"ambulante Operationen, Kategorie E; Raumklasse II"]
[61122,"kleine operative/ invasive Eingriffe"]
[612,"Räume für medizinische Erstversorgung und Erste-Hilfe, Wundversorgung"]
[6121,"Raum für Erstversorgung"]
[61211,"Erste-Hilfe-Raum"]
[61212,"Erste-Hilfe-Raum mit medizinischer Ausstattung im Krankenhaus"]
[6122,"Gipsraum"]
[61221,"Gipsraum mit RLT 1"]
[613,"Obduktions- und Verstorbenenräume"]
[6131,"Verstorbenenraum"]
[61311,"Aufbahrungsraum mit RLT 2"]
[614,"räume für Beratung (medizinische Vor- und Fürsorge) und Ausbildung"]
[6141,"Demonstrationsraum"]
[61411,"Demonstrationsraum mit einfacher Ausstattung und RLT 1"]
[61412,"Projektions-/Demonstrationsraum mit RLT 2"]
[61413,"Klinischer Konferenzraum PACS mit RLT 2"]
[615,"Räume für Tiermedizin"]
[6151,"Tiermedizinischer U + B Raum"]
[61511,"Tiermedizinischer U + B Raum mit einfacher medizinischer Ausstattung und RLT 1"]
[61512,"Tiermedizinischer U + B Raum mit besonderer Ausstattung und RLT 2"]
[62,"Räume  für spezielle Untersuchung und Behandlung"]
[621,"Räume für Neuro- und Sinnesphysiologie"]
[6211,"U + B Raum Neurophysiologie"]
[62111,"U + B Raum Neurophysiologie mit RLT 1"]
[62112,"U + B Raum Neurophysiologie mit RLT 2"]
[6212,"U + B-Raum Sinnesphysiologie"]
[62121,"Sinnesphysiologischer U + B-Raum mit RLT 2"]
[62122,"Audiometrieraum mit Erschütterungsschutz und RLT 2"]
[6213,"U + B-Raum Augen"]
[62131,"Augen-U + B-Raum mit RLT 2"]
[62132,"Augen- U+B-Raum mit Laser, reflexionsfrei und RLT 2"]
[6214,"U + B Raum Atemphysiologie"]
[62141,"U + B Raum Atemphysiologie"]
[62142,"U + B Raum Atemphysiologie mit RLT 2"]
[622,"Räume für Herz-/ Kreislaufdiagnostik"]
[6221,"U + B Raum Herz/ Kreislaufdiagnostik"]
[62211,"U + B Raum Herz/Kreislaufdiagnostik mit RLT 1"]
[62212,"U + B Raum Herz/Kreislaufdiagnostik mit RLT 2"]
[62213,"U + B Raum Herz/ Kreislaufdiagnostik mit RLT 3"]
[623,"Räume für Zahnmedizinische Behandlung"]
[6231,"Zahnmedizinischer U + B-Raum"]
[62311,"Zahnmedizinischer U + B-Raum"]
[624,"Räume für Endoskopien"]
[6241,"Endoskopieraum"]
[62411,"Waschraum Endoskopie mit RLT 1"]
[62412,"Endoskopieraum mit RLT 3"]
[62413,"Endoskopieraum mit RLT 3 und Strahlenschutz"]
[625,"Geburtshilferäume"]
[6251,"Geburtshilferaum"]
[62511,"Geburtshilfe-/ Vorbereitungs- und Ergänzungsraum"]
[62512,"Geburtshilferaum mit RLT 1"]
[62513,"Geburtshilferaum m. Sonderausstattung und RLT 1"]
[63,"Räume für operative Eingriffe"]
[631,"Räume für Operationen"]
[6311,"OP-Raum Raumklasse Ia"]
[63111,"Operationsraum"]
[63112,"Operationsraum mit Strahlenschutz"]
[63113,"Operationsraum mit Sonderausstattung"]
[63114,"Operationsraum mit Sonderausstattung und Strahlenschutz"]
[63115,"Eingriffsraum mit besonderen hygienischen und RLT-Anforderungen"]
[63116,"Operationsraum mit Strahlen-/ Laserschutz"]
[63117,"Operationsraum für Kinder"]
[6312,"OP-Raum Raumklasse Ib"]
[63121,"Eingriffsraum"]
[63122,"Eingriffraum mit Lasereinsatz (z.B. Augenklinik: Lasik-Laser)"]
[63123,"Ambulante Operationen, Kategorie OP"]
[63124,"Operationsraum mit reduzierten RLT-Anforderungen"]
[63125,"Operationsraum mit Strahlen-/ Laserschutz, reduzierten RLT-Anforderungen"]
[6313,"Hybrid-OP-Raum"]
[63131,"Hybrid OP"]
[63132,"Hybrid-Operationsraum Angiographie"]
[63133,"Hybrid-Operationsraum intraoperativer MRT"]
[63134,"Hybrid-Operationsraum CT"]
[632,"OP-Ergänzungsräume; Raumklassen I und II"]
[6321,"OP-Ergänzungsraum Raumklasse Ia, Ib"]
[63211,"Richtraum Raumklasse Ib"]
[63212,"Richtraum Raumklasse Ia"]
[63213,"Geräteraum Raumklasse Ib"]
[63214,"Geräteraum Raumklasse Ia"]
[6322,"OP-Ergänzungsraum Raumklasse II"]
[63221,"Waschraum OP, Raumklasse II"]
[63222,"Patientenvorbereitungsraum OP, Raumklasse II"]
[63223,"Einleitungsraum, Raumklasse II"]
[63224,"Einleitungs-/Ausleitungsraum, Raumklasse II"]
[63225,"Ausleitungs-/Entsorgungsraum, Raumklasse II"]
[63226,"Gipsraum OP, Raumklasse II"]
[63227,"Medizinische Versorgung OP, Raumklasse II"]
[63228,"Medizinische Entsorgung OP, Raumklasse II"]
[63229,"Umbettschleuse, Raumklasse II"]
[633,"Tiermedizinische Operationsräume"]
[6331,"Tiermedizinischer Operationsraum"]
[63311,"Tierendoskopieraum mit RLT 1"]
[63312,"Tieroperationsraum mit RLT 3"]
[63313,"Tieroperationsraum mit Strahlenschutz und RLT 3"]
[64,"Räume für Strahlendiagnostik"]
[641,"Räume für allgemeine und spezielle Röntgendiagnostik"]
[6411,"allgemeiner Röntgendiagnostikraum"]
[64111,"Durchleuchtungsraum mit RLT 2"]
[64112,"Röntgenaufnahmeraum mit RLT 2"]
[64113,"Röntgenuntersuchungsraum experimentell mit RLT 2"]
[64114,"Röntgenvorbereitungsraum mit RLT 2"]
[6412,"Spezieller Röntgendiagnostikraum"]
[64121,"Zahnmedizinischer Röntgenuntersuchungsraum mit RLT 2"]
[642,"Räume für Nuklearmedizinische Diagnostik"]
[6421,"Diagnostik ohne Messraum"]
[64211,"Abklingraum Nuklearmedizin mit RLT 1"]
[64212,"Vorbereitungsraum nuklearmedizinische Diagnostik mit RLT 1"]
[64213,"Patientenvorbereitung (Nukl. Med.)"]
[64216,"Applikation - Diagnostik (U/B)"]
[64217,"Untersuchung- und Behandlungsraum"]
[6422,"Diagnostik mit Messraum"]
[64221,"Messraum mit Einkanal-Messplatz und RLT 2"]
[64222,"Messraum mit (Gamma) Kamera und RLT 2"]
[64223,"Messraum für Positronen-Emissions-Tomographie (PET) mit RLT 3"]
[643,"Tomographieräume"]
[6431,"CT-Raum"]
[64311,"Computertomographieraum (CT) mit RLT 2"]
[64312,"Spezialaufnahmenraum mit RLT 2"]
[64313,"Schichtaufnahmenraum mit RLT 2"]
[64314,"Angiographieraum mit RLT 2"]
[64315,"Magnetresonanz-Tomographieraum (NMR) mit RLT 3"]
[64316,"PET-CT"]
[64317,"PET-MRT"]
[644,"Räume für Ultraschall-/Hochfrequenzdiagnostik"]
[6441,"Ultraschalldiagnostikraum"]
[64411,"Ultraschalldiagnostikraum mit RLT 1"]
[64412,"Ultraschalldiagnostikraum mit RLT 2"]
[645,"Nuklearmedizinische Diagnostik für Tiermedizin"]
[6451,"Strahlendiagnostikraum"]
[64511,"Strahlendiagnostikraum Tiermedizin mit RLT 1"]
[64512,"Nuklearmedizinischer Messraum für Tiere mit RLT 1"]
[646,"Räume für Nuklearmedizin: Vorbereitung/ Nachbereitung Radionuklide"]
[6461,"Raum für Vorbereitung/ Nachbereitung Radionuklide"]
[64611,"Radionuklidlabor"]
[64612,"Tresor mit Schleuse (Heißlabor)"]
[65,"Räume für Strahlentherapie"]
[651,"Räume für nuklearmedizinische Therapie"]
[6511,"Raum für Bestrahlung mit radioaktiven Stoffen"]
[65111,"Oberflächenbestrahlung mit RLT 3"]
[65112,"Halbtiefen-/ Tiefenbestrahlung mit RLT 3"]
[65113,"Linearbeschleuniger mit RLT 3"]
[65114,"Bestrahlungsplanung mit RLT 3"]
[65115,"Bestrahlung mit offenen radioaktiven Stoffen und RLT 2"]
[65116,"Bestrahlung mit umschlossenen radioaktiven Stoffen und RLT 2"]
[6512,"Raum für Bestrahlung mit Isotopen"]
[65121,"Bestrahlung mit offenen Isotopen und RLT 2"]
[65122,"Bestrahlung mit umschlossenen Isotopen - Vorbereitung und RLT 2"]
[65123,"Bestrahlung mit umschlossenen Isotopen - Behandlung und RLT 2"]
[66,"Räume für Physiotherapie und Rehabilitation"]
[661,"Räume für medizinische Bäder"]
[6611,"Medizinisches Bad"]
[66111,"Medizinisches Wannenbad mit RLT 1"]
[66112,"Medizinisches Teilbad mit RLT 1"]
[66113,"Unterwasserdruckstrahlmassage mit RLT 1"]
[66114,"Kneipp'sche Anwendungen mit RLT 1"]
[66115,"Bewegungswannenbad mit RLT 1"]
[66116,"Schwimmbecken Nasstherapie mit RLT 1"]
[662,"Räume für Hydro-, Bewegungstherapie  sowie Kuranwendungen"]
[6621,"Raum für Hydro- und Kuranwendungen"]
[66211,"Schwitzbad mit RLT 1"]
[66212,"Packungen - Vorbereitung mit RLT 1"]
[66213,"Packungen - Behandlung mit RLT 1"]
[6622,"Raum für Bewegungstherapie"]
[66221,"Laufschule"]
[66222,"Traktionsraum"]
[663,"Elektrotherapieräume"]
[6631,"Elektrotherapieraum"]
[66311,"Bestrahlungen mit RLT 1"]
[66312,"Durchströmung mit RLT 1"]
[66313,"Vibrationsmassage mit RLT 1"]
[66314,"Hyperthermietherapie mit RLT 3"]
[664,"Räume für Spiel-, Gruppen-, Arbeits- und Ergotherapie, Heilpädagogik"]
[6641,"Rehabilitationsraum Spieltherapie, Heilpädagogik"]
[66411,"Rehabilitationsraum Spieltherapie"]
[66412,"Snoezelraum mit RLT 2"]
[6642,"Rehabilitationsraum Arbeitstherapie"]
[66421,"Rehabilitationsraum Arbeitstherapie"]
[665,"Räume für Krankengymnastik und Massage"]
[6651,"Gymnastikraum"]
[66511,"Gymnastikraum mit RLT 1"]
[6652,"Massageraum"]
[66521,"Massageraum mit RLT 1"]
[666,"Inhalations- und Klimabehandlungsräume"]
[6661,"Inhalationsbehandlung"]
[66611,"Einzelinhalation"]
[66612,"Rauminhalation mit RLT 1"]
[67,"Bettenräume mit allgemeiner Ausstattung in Krankenhäusern und Pflegeanstalten"]
[671,"Normal-, Langzeit- und Leichtpflegeräume"]
[6711,"Normalpflegebettenraum"]
[67111,"Normalpflegebettenraum"]
[67112,"Tagesklinischer Pflegeplatz"]
[67113,"Kinderpflegebettenraum mit RLT 1"]
[67114,"Pflegebettenraum, Raumklasse II"]
[6712,"Neugeborenenpflegebettenraum"]
[67121,"Neugeborenenpflegebettenraum mit RLT 2"]
[67122,"Säuglingspflegebettenraum mit RLT 2"]
[6713,"Langzeitpflegebettenraum"]
[67131,"Langzeitpflegebettenraum mit RLT 2"]
[67132,"Leichtpflegebettenraum mit RLT 1"]
[672,"Psychiatrische Pflegebettenräume"]
[6721,"Bettenraum Psychiatrie"]
[67211,"Psychiatrischer Pflegeraum mit RLT 1"]
[67212,"Psychiatrischer Pflegeraum mit Pflegestandard und RLT 1"]
[67213,"Time-Out-Raum mit RLT 2"]
[68,"Bettenräume mit besonderer medizinischer Ausstattung"]
[681,"Postoperative Überwachung, Intensivmedizin"]
[6811,"Intensivmedizin"]
[68111,"Bettenraum Intensivüberwachung (IMC) mit RLT 3"]
[68112,"Bettenraum Intensivbehandlung (ITS) mit RLT 3"]
[6812,"Aufwachraum"]
[68121,"Aufwachraum (postoperativ) mit RLT 2"]
[68122,"Aufwachraum (postoperativ) mit RLT 3"]
[682,"Räume mit besonderer med. Ausstattung"]
[6821,"Isoliereinheiten, Raumklasse I"]
[68211,"Bettenraum für die Behandlung Brandverletzter/ Verbrennungsstation mit RLT 3"]
[68212,"Bettenraum für Reverse Isolation mit RLT 3"]
[6822,"Isoliereinheiten, Raumklasse II"]
[68221,"Infektionspflegebettenraum mit RLT 1"]
[6823,"Bettenraum für Strahlenpatienten"]
[68231,"Bettenraum für Strahlenpatienten, offene Isotope und RLT 1"]
[68232,"Bettenraum für Strahlenpatienten, umschlossene Isotope und RLT 1"]
[6824,"Bettenraum"]
[68241,"Bettenraum für die Pflege Frühgeborener mit RLT 3"]
[68242,"Bettenraum für die Pflege Querschnittgelähmter"]
[683,"Dialyseräume"]
[6831,"Raum für Dialyse"]
[68311,"Behandlungsplatz Dialyse mit RLT 2"]
[68312,"Intensivbehandlung Akutdialyse mit RLT 3"]
[7,"Sonstige Nutzungen"]
[71,"Nutzungsspezifische technische Anlagen oder Einrichtungen"]
[711,"Räume mit tech. Anlagen zum Betrieb nutzungsspezifischer Geräte oder Anlagen"]
[7111,"Raum für Technik"]
[71111,"Raum für Technik mit RLT 2"]
[71112,"Hydrauliktechnikraum für Geräte"]
[71113,"Hydrauliktechnikraum für Maschinen und Anlagen"]
[712,"Räume für EDV-Anlagen"]
[7121,"Raum ohne Wärmelast"]
[71211,"DV-Kleinrechneranlagenraum mit RLT 1"]
[71212,"Raum für Serveranlagen-Bedienplatz mit RLT 1"]
[7122,"Raum mit Wärmelast"]
[71221,"DV-Großrechneranlagenraum mit RLT 2"]
[71222,"Serverraum mit Sicherheitsanforderungen und RLT 2"]
[713,"Schalträume für nutzungsspezifische technische Anlagen"]
[7131,"Zentraler Schaltraum"]
[71311,"Schaltraum"]
[71312,"Schaltraum mit bes. bauk./ tech. Anf. und RLT 1"]
[71313,"Schaltraum für Förderanlagen mit RLT 1"]
[71314,"Schaltraum für  Anlagen mit RLT 1"]
[714,"Schaltwarten für nutzungsspezifische Anlagen angegliederter/ benachbarter Räume"]
[7141,"Schalt-/ Bedienraum"]
[71411,"Schaltraum Radiologie mit RLT 2"]
[71412,"Schaltraum OP mit RLT 3"]
[71413,"Raum für Sonderbedienung Tierhaltung/ Versuchssteuerung mit RLT 2"]
[71414,"Raum für Sondersystem (z.B. Monitoring / GMP) mit RLT 2"]
[71415,"Bedien- / Auswertraum Röntgen mit RLT 2"]
[715,"Regieräume, Vorführkabinen"]
[7151,"Regieraum"]
[71511,"Regieraum mit RLT 2"]
[7152,"Projektionsraum"]
[71521,"Projektionsraum mit RLT 1"]
[71522,"Filmvorführraum mit RLT 1"]
[719,"Räume für nutzungsspezifische technische Ver- und Entsorgung"]
[7191,"Raum für Abwasseraufbereitung und -entsorgung"]
[71911,"Entsorgungsraum Abwasser für Geräte, Maschinen und Anlagen"]
[71912,"Abwasseraufbereitung und Neutralisation mit RLT1"]
[7192,"Raum für Wasserversorgung"]
[71921,"Raum für Wasseraufbereitung"]
[7194,"Raum für Versorgung mit Gasen und Flüssigkeiten"]
[71941,"Versorgungsraum Gase für Geräte, Maschinen und Anlagen"]
[71942,"Versorgungsraum Flüssigkeiten für Geräte, Maschinen und Anlagen"]
[71943,"Versorgungsraum Druckluft für Geräte, Maschinen und Anlagen"]
[71944,"Schwarzdampf-Erzeugung"]
[71945,"Reindampf-Erzeugung"]
[7195,"Raum für Stromversorgung"]
[71951,"Versorgungsraum Strom für Geräte, Maschinen und Anlagen"]
[71952,"Raum für Notstromversorgung"]
[71953,"Raum für Dieselaggregat"]
[71954,"Batterieraum"]
[7196,"Raum für Fernmelde-/ Datentechnik"]
[71961,"Versorgungsraum Fernmeldetechnik für Geräte, Maschinen und Anlagen"]
[71962,"Versorgungsraum Datentechnik für Geräte, Maschinen und Anlagen"]
[71963,"Meldeanlageraum (Brandmeldeanlage, Einbruchmeldeanlage, etc.)"]
[7197,"Raum für Luft-/ Kälteversorgung"]
[71973,"Versorgungsraum Kälte für Geräte, Maschinen und Anlagen"]
[7198,"Raum für Förderanlagen"]
[71981,"Maschinenraum für Rohrpostanlage"]
[72,"Technische Anlagen zur Ver- und Entsorgung anderer Bauwerke sowie notwendige Ergänzungsflächen"]
[721,"Räume für Abwasseraufbereitung und -beseitigung"]
[7211,"Raum zur Abwasseraufbereitung und -beseitigung"]
[72111,"Raum für Abwasserbeseitigung"]
[72112,"Abwasseraufbereitung und Neutralisation mit RLT 1"]
[722,"Räume für Wasserversorgung"]
[7221,"Raum zur Wasserversorgung"]
[72211,"Raum für Wasserversorgung"]
[72212,"Raum für Wasseraufbereitung"]
[723,"Räume für Wärmeversorgung"]
[7231,"Raum zur Wärmeversorgung"]
[72311,"Zentraler Versorgungsraum Wärme"]
[72312,"Zentraler Raum für Heizbrennstoffe fest"]
[72313,"Zentraler Raum für Heizbrennstoffe flüssig"]
[724,"Räume zur Versorgung mit Gasen und Flüssigkeiten"]
[7241,"Raum zur Versorgung mit Gasen oder Flüssigkeiten"]
[72411,"Schwarzdampf-Erzeugung"]
[72412,"Reindampf-Erzeugung"]
[72413,"Versorgungsraum Gase"]
[72414,"Versorgungsraum Flüssigkeiten"]
[72415,"Versorgungsraum Druckluft"]
[725,"Räume für Stromversorgung"]
[7251,"Raum für Stromversorgung"]
[72511,"Raum für elektrische Stromversorgung"]
[72512,"Raum für Notstromversorgung"]
[72513,"Raum für Dieselaggregat"]
[72514,"Batterieraum"]
[726,"Räume für Fernmelde-/Datentechnik"]
[7261,"Raum für Fernmelde-/ Datentechnik"]
[72611,"Raum für Fernmeldetechnik"]
[72612,"Raum für Datentechnik"]
[727,"Räume für Luft-/ Kälteversorgung"]
[7271,"Raum für Luft-/ Kälteversorgung"]
[72711,"Zentraler Versorgungsraum Luft ohne Kälte"]
[72712,"Zentraler Versorgungsraum Luft mit Kälte"]
[728,"Räume für Förderanlagen"]
[7281,"Raum für Förderanlagen"]
[72811,"Zentraler Versorgungsraum Förderanlagen"]
[729,"Raum für sonstige Ver- und Entsorgung"]
[7291,"Raum für sonstige Ver- und Entsorgung"]
[72911,"Sonstiger Zentraler Ver- u. Entsorgungsraum"]
[73,"Abstellräume"]
[731,"Abstellraum sowie Dach- und Kellerabstellraum"]
[7311,"Abstellraum"]
[73111,"Abstellraum, einfacher Ausbau"]
[73112,"Abstellraum"]
[73113,"Abstellraum mit RLT 1"]
[732,"Fahrrad-/ Kinderwagenabstellräume"]
[7321,"Fahrradabstellraum"]
[73211,"Fahrradabstellraum"]
[7322,"Kinderwagenabstellraum"]
[73221,"Kinderwagenabstellraum"]
[733,"Müllsammelräume"]
[7331,"Müllsammelraum"]
[73311,"Müllsammelraum"]
[73312,"Müllsammelraum mit RLT 1"]
[73313,"Müllsammelraum gekühlt mit RLT 2"]
[734,"Transportgeräteabstellräume"]
[7341,"Gütertransportgeräteabstellraum"]
[73411,"KFA/ AWT- Container-Stauraum"]
[73412,"KFA/ AWT-Station und Containerbahnhof"]
[7342,"Personentransportgeräteabstellraum"]
[73421,"Krankentransportgeräteraum"]
[74,"Fahrzeugabstellflächen"]
[741,"Garagen aller Art, mittlere Höhe < 4,50 m"]
[7411,"Abstellfläche für Kfz in eigenem Garagengebäude"]
[74111,"Abstellfläche für Kfz, einfach"]
[74112,"Abstellfläche für Kfz"]
[7412,"Abstellfläche für Kfz im Gebäude integriert"]
[74121,"Abstellfläche für Kfz im Gebäude integriert"]
[74122,"Abstellfläche für Kfz im Gebäude integriert mit RLT 1"]
[7413,"KFZ-Abstellfläche mit Sicherheitsanforderungen"]
[74131,"KFZ-Abstellfläche mit Sicherheitsanforderungen"]
[742,"Hallen für Schienen-, Straßen-,Wasser-, Luftfahrzeuge, landwirt. Fahrzeuge, mittlere Höhe"]
[7421,"Großgeräteabstellfläche"]
[74211,"Großgeräteabstellfläche"]
[74212,"Großgeräteabstellfläche mit RLT 1"]
[7422,"Kettenfahrzeugabstellfläche"]
[74221,"Kettenfahrzeugabstellfläche"]
[7423,"Schienenfahrzeugabstellfläche"]
[74231,"Schienenfahrzeugabstellfläche"]
[74232,"Schienenfahrzeugabstellfläche für kraftstoffbetriebene Fahrzeuge mit RLT 1"]
[7424,"Luftfahrzeugabstellfläche"]
[74241,"Luftfahrzeugabstellfläche"]
[7425,"Wasserfahrzeugabstellfläche"]
[74251,"Wasserfahrzeugabstellfläche landseitig"]
[74252,"Wasserfahrzeugabstellfläche seeseitig"]
[75,"Fahrgastflächen"]
[751,"Fahrgastflächen"]
[7511,"Fahrgastflächen"]
[75111,"Bahnsteig"]
[75112,"Fahrsteig"]
[75113,"Flugsteig"]
[75114,"Landesteg"]
[76,"Schutzräume"]
[761,"Schutzraum"]
[7611,"Schutzraum"]
[76111,"Ziviler Schutzraum"]
[76112,"Militärischer Schutzraum"]
[76113,"ABC Schutzraum"]
[762,"Mehrzweckschutzraum"]
[7621,"Schutzraum"]
[76211,"Ziviler Schutzraum als Mehrzweckraum"]
[76212,"Militärischer Schutzraum als Mehrzweckraum"]
[77,"Sonstige Räume"]
[771,"Nicht ausgebaute Nutzungsfläche"]
[7711,"Nicht ausgebaute Nutzungsfläche sortiert nach DIN 277"]
[77111,"nicht ausgebaute Aufenthaltsfläche"]
[77112,"nicht ausgebaute Bürofläche"]
[77113,"nicht ausgebaute Laborfläche"]
[77114,"nicht ausgebaute Lagerfläche"]
[78,"Sanitärräume"]
[781,"Toiletten"]
[7811,"Toilette"]
[78111,"Toilette"]
[78112,"Toilette mit RLT 1"]
[78113,"Toilette barrierefrei mit RLT 1"]
[78114,"Patiententoilette mit RLT 1"]
[78115,"Toilette mit Strahlenschutzmaßnahmen und  RLT 2"]
[782,"Wickelräume/ Schminkräume/ Wellnessbereich"]
[7821,"Wickelraum"]
[78211,"Wickelraum"]
[78212,"Wickelraum mit Waschtisch"]
[78213,"Wickelraum mit Waschtisch und RLT 1"]
[7822,"Schminkraum"]
[78221,"Schminkraum"]
[78222,"Schminkraum mit Waschtisch"]
[78223,"Schminkraum mit Waschbecken und RLT 1"]
[7823,"Wellnessbereich"]
[78231,"Saunaraum"]
[78232,"Wellnessraum"]
[783,"Sanitärräume/ -flächen: duschen, baden, waschen"]
[7831,"Sanitärraum/ -fläche: duschen, waschen mit WC"]
[78311,"Sanitärraum"]
[78312,"Sanitärraum mit RLT 1"]
[78313,"Sanitärzelle Patientenzimmer mit RLT 1"]
[78314,"Sanitärzelle Patientenzimmmer mit bes. hygienischen Anf. mit RLT 1"]
[78315,"Sanitärzelle mit Strahlenschutzmaßnahmen und RLT 2"]
[78316,"Waschraum"]
[78317,"Waschraum mit RLT 1"]
[78318,"Waschraum barrierefrei mit RLT 1"]
[78319,"Waschraum mit Strahlenschutzmaßnahmen und RLT 1"]
[7832,"Einzel-/ Zweierraum"]
[78321,"Duschraum / Baderaum"]
[78322,"Duschraum / Baderaum mit RLT 1"]
[78323,"Duschraum / Baderaum barrierefrei mit RLT 1"]
[78324,"Patientendusche / Patientenbad mit RLT 1"]
[78325,"Duschraum mit Strahlenschutzmaßnahmen mit RLT 1"]
[7833,"Gruppenraum"]
[78331,"Waschraum"]
[78332,"Waschraum mit RLT 1"]
[78333,"Duschraum"]
[78334,"Duschraum mit RLT 1"]
[7834,"Badezimmer in Wohnräumen"]
[78341,"Badezimmer in Wohnungen"]
[78342,"Badezimmer in Wohnungen mit RLT 1"]
[784,"Reinigungsschleusen"]
[7841,"Zwangsdusche"]
[78411,"Zwangsdusche mit RLT 1"]
[78412,"Zwangsdusche im strahlengeschützten, hygienisch abgeschlossenen Bereich und RLT 2"]
[785,"Putzräume"]
[7851,"Putzraum"]
[78511,"Putzraum mit Ausguss"]
[78512,"Putzraum mit Ausguss und RLT 1"]
[78513,"Putzraum mit Ausguss, bes. hygienischen Anf. und RLT 1"]
[78514,"Putzraum mit Ausguss, Raumklasse II im OP-Bereich"]
[79,"Garderoben / Umkleiden"]
[791,"Umkleideräume"]
[7911,"Einzelumkleideraum"]
[79111,"Einzelumkleideraum"]
[79112,"Einzelumkleideraum mit Waschbecken"]
[79113,"Einzelumkleideraum mit RLT1"]
[79114,"Einzelumkleideraum mit Waschbecken und RLT1"]
[79115,"Patientenumkleide U+B-Raum mit RLT1"]
[7912,"Gruppenumkleideraum"]
[79121,"Gruppenumkleideraum"]
[79122,"Gruppenumkleideraum mit Waschtisch und RLT 1"]
[792,"Umkleideschleusen"]
[7921,"Umkleideschleuse"]
[79211,"Umkleideschleuse"]
[79212,"Umkleideschleuse mit Waschtisch"]
[79213,"Umkleideschleuse mit Waschtisch und RLT 1"]
[7922,"Umkleideschleuse im OP-Bereich"]
[79221,"Umkleideschleuse im OP-Bereich, Raumklasse II"]
[7923,"Umkleideschleuse im Laborbereich mit Sicherheitsanforderungen nach GenTSV"]
[79231,"Personalschleuse mit hygienischen Anf. und RLT 1"]
[7924,"Umkleideschleuse im Laborbereich mit Strahlenschutzanforderungen"]
[79241,"Umkleideschleuse im strahlengeschützten Bereich und RLT 1"]
[79242,"Personalschleuse im strahlengeschützten Bereich mit Dekontaminationsdusche und RLT 1"]
[79243,"Personalschleuse m. bes. baukonstr., hygien., RLT-Anforderungen u. Strahlenschutz"]
[793,"Garderoben"]
[7931,"Kleiderablage"]
[79311,"Garderobe"]
[79312,"Garderobe mit  RLT 1"]
[7932,"Künstlergarderobe"]
[79321,"Künstlergarderobe"]
[79322,"Künstlergarderobe mit Waschtisch und RLT 1"]
[794,"Schrankräume in Wohngebäuden"]
[7941,"Schrankraum"]
[79411,"Schrankraum"]
[79412,"Schrankraum mit RLT 1"]
[8,"Technikflächen sowie notwendige Ergänzungsflächen"]
[81,"Abwasseraufbereitung und -beseitigung"]
[811,"Räume für Abwasseraufbereitung und -beseitigung"]
[8111,"Raum für Abwasserbeseitigung"]
[81111,"Raum für Abwasserhebeanlage"]
[8112,"Raum für Abwasseraufbereitung und Neutralisation"]
[81121,"Raum für Abwasseraufbereitung und Neutralisation mit RLT 1"]
[819,"Referenzraum Abwasseraufbereitung und -beseitigung"]
[8191,"Referenzraum Abwasseraufbereitung und -beseitigung"]
[81911,"Referenzraum für Abwasseraufbereitung und -beseitigung"]
[82,"Wasserversorgung"]
[821,"Räume für Wasserversorgung"]
[8211,"Raum für Wasserversorgung"]
[82111,"Raum für Wasserversorgung"]
[8212,"Raum für Wasseraufbereitung"]
[82121,"Raum für Wasseraufbereitung"]
[829,"Referenzraum Wasserversorgung"]
[8291,"Referenzraum Wasserversorgung"]
[82911,"Referenzraum Wasserversorgung"]
[83,"Heizung und Brauchwassererwärmung"]
[831,"Räume für Heizung und Brauchwassererwärmung"]
[8311,"Raum Heizung und Brauchwassererwärmung"]
[83111,"Raum für Heizung und Brauchwassererwärmung"]
[8312,"Lagerraum Brennstoffe"]
[83121,"Lagerraum für Heizbrennstoffe fest"]
[83122,"Lagerraum für Heizbrennstoffe flüssig"]
[83123,"Lagerraum für Heizbrennstoffe gasförmig"]
[839,"Referenzraum Heizung und Brauchwassererwärmung"]
[8391,"Referenzraum Heizung und Brauchwassererwärmung"]
[83911,"Referenzraum Heizung und Brauchwassererwärmung"]
[84,"Gase und Flüssigkeiten (außer für Heizzwecke)"]
[841,"Gase und Flüssigkeiten (außer für Heizzwecke)"]
[8411,"Dampf"]
[84111,"Schwarzdampf-Erzeugung"]
[84112,"Reindampf-Erzeugung"]
[8412,"Gase und Flüssigkeiten (außer für Heizzwecke)"]
[84121,"Versorgungsraum Gase"]
[84122,"Versorgungsraum Flüssigkeiten"]
[84123,"Versorgungsraum Druckluft"]
[849,"Referenzraum Gase und Flüssigkeiten"]
[8491,"Referenzraum Gase und Flüssigkeiten"]
[84911,"Referenzraum Gase und Flüssigkeiten"]
[85,"Elektrische Stromversorgung"]
[851,"Räume für elektrische Stromversorgung"]
[8511,"Raum für elektrische Stromversorgung"]
[85111,"Elektrische Stromversorgung"]
[8512,"Raum für elektrische Notstromversorgung"]
[85121,"Notstromversorgung"]
[85122,"Raum für Dieselaggregat"]
[85123,"Batterieraum"]
[859,"Referenzraum elektrische Stromversorgung"]
[8591,"Referenzraum elektrische Stromversorgung"]
[85911,"Referenzraum elektrische Stromversorgung"]
[86,"Fernmelde-/ Gebäudeleittechnik"]
[861,"Räume für Fernmeldetechnik"]
[8611,"Raum für Fernmeldetechnik"]
[86111,"Fernmeldetechnik"]
[86112,"DV-Verteilerraum"]
[8612,"Raum für Gebäudeleittechnik"]
[86121,"Gebäudeleittechnik (GLT)"]
[86122,"Meldeanlageraum (Brandmeldeanlage, Einbruchmeldeanlage, etc.)"]
[869,"Referenzraum Fernmelde- und Gebäudeleittechnik"]
[8691,"Referenzraum Fernmelde- und Gebäudeleittechnik"]
[86911,"Referenzraum Fernmelde- und Gebäudeleittechnik"]
[87,"Raumlufttechnische Anlagen"]
[871,"Raumlufttechnische Anlagen"]
[8711,"Raumlufttechnische Anlagen"]
[87111,"Versorgungsraum Luft ohne Kälte"]
[87112,"Versorgungsraum Luft u. Kälte"]
[879,"Referenzraum Raumlufttechnik"]
[8791,"Referenzraum Raumlufttechnik"]
[87911,"Referenzraum Raumlufttechnik"]
[88,"Aufzug- und Förderanlagen"]
[881,"Aufzug- und Förderanlagen"]
[8811,"Aufzugsanlagen"]
[88111,"Maschinenraum für Aufzuganlagen"]
[8812,"Förderanlagen"]
[88121,"Maschinenraum für Förderanlagen"]
[889,"Referenzraum Aufzug- und Förderanlagen"]
[8891,"Referenzraum Aufzug- und Förderanlagen"]
[88911,"Referenzraum Aufzug- und Förderanlagen"]
[89,"Sonstige betriebstechnische Anlagen"]
[891,"Räume für sonstige betriebs. Anlagen"]
[8911,"Hausanschlussraum"]
[89111,"Hausanschlussraum"]
[8912,"Installationsraum"]
[89121,"Installationsraum"]
[8913,"Abfallverbrennungsraum"]
[89131,"Abfallverbrennungsraum"]
[8914,"Raum zur Eigen- und Fremdversorgung"]
[89141,"Sonstiger Zentraler Ver- u. Entsorgungsraum"]
[892,"Schächte, Kanäle, Flächen"]
[8921,"Installationsschacht"]
[89211,"Installationsschacht"]
[8922,"Installationskanal"]
[89221,"Installationskanal"]
[8923,"Wartungsfläche"]
[89231,"Wartungsfläche"]
[899,"Referenzraum sonstige betriebs. Anlagen"]
[8991,"Referenzraum sonstige betriebs. Anlagen"]
[89911,"Referenzraum sonstige betriebs. Anlagen"]
[9,"Verkehrserschließung und -sicherung"]
[91,"Flure und Hallen"]
[911,"Flure"]
[9111,"Flur"]
[91111,"Flur"]
[91112,"Flur mit RLT 1"]
[91113,"Flur in Wohnungen"]
[91114,"Vorraum"]
[91115,"Verbindungssteg"]
[9112,"Flur mit bes. Anforderungen"]
[91121,"Flur im Klinikbereich, Raumklasse II"]
[91122,"Flur im Laborbereich ab S3"]
[91123,"Flur in Tierhaltung, hochinstalliert"]
[9113,"Flur als Fluchtweg"]
[91131,"Flur als Fluchtweg"]
[91132,"Fluchtbalkon"]
[912,"Schleusen"]
[9121,"Schleuse"]
[91211,"Windfang"]
[91212,"Schleuse (Durchgang)"]
[9122,"Schleuse mit bes. Anforderungen"]
[91221,"Schleuse Tierhaltung SpezifiziertPathogenFrei"]
[91222,"Schleuse mit Sicherheitsanforderungen S3"]
[91223,"Schleuse mit Sicherheitsanforderungen Strahlenschutz"]
[91224,"Schleuse mit Vereinzelungsanlage"]
[913,"Hallen"]
[9131,"Eingangshalle"]
[91311,"Eingangshalle"]
[919,"Referenzraum Flure und Hallen"]
[9191,"Referenzraum Flure und Hallen"]
[91911,"Referenzraum Flure und Hallen"]
[92,"Treppen"]
[921,"Treppenraum"]
[9211,"Treppenraum"]
[92111,"Treppenraum, -lauf, Rampe"]
[92112,"Treppenraum, -lauf, Rampe mit RLT 1"]
[92114,"Treppe in Wohnungen"]
[9212,"Treppenraum mit erhöhten baukonstruktiven und technischen Anforderungen"]
[92121,"Sicherheitstreppenraum"]
[92122,"Übungstreppenhaus IGT (Integrationstraining)"]
[9213,"Treppe als Fluchtweg"]
[92131,"Fluchttreppenraum, -lauf"]
[92132,"Fluchtrampe als zweiter Rettungswegweg"]
[922,"Rollsteige"]
[9221,"Rollsteig"]
[92211,"Rolltreppe, -rampe"]
[929,"Referenzraum Treppe"]
[9291,"Referenzraum Treppe"]
[92911,"Referenzraum Treppe"]
[93,"Schächte für Förderanlagen"]
[931,"Aufzug-/ Abwurfschächte"]
[9311,"Personenaufzug"]
[93111,"Schacht für Personenaufzug"]
[9312,"Waren-/ Materialtransport"]
[93121,"Schacht mit Lieferaufzug"]
[93122,"Schacht mit Materialaufzug"]
[93123,"Schacht für Rohrpost"]
[93124,"Schacht für Allgemeinen WarenTransport (AWT)"]
[93125,"Tunnel für Materialförderanlagen (AWT)"]
[9313,"Abwurfschacht"]
[93131,"Abwurfschacht"]
[939,"Referenz Schächte für Förderanlagen"]
[9391,"Referenz Schächte für Förderanlagen"]
[93911,"Referenz Schächte für Förderanlagen"]
[94,"Fahrzeugverkehrsflächen"]
[941,"Durchfahrten"]
[9411,"Fahrzeugverkehrsfläche horizontal"]
[94111,"Fahrzeugverkehrsfläche horizontal"]
[94112,"Fahrzeugverkehrsfläche horizontal mit RLT 1"]
[9412,"Rampe"]
[94121,"Fahrzeugverkehrsfläche geneigt (Rampe)"]
[94122,"Fahrzeugverkehrsfläche geneigt (Rampe) mit RLT 1"]
[949,"Referenz Fahrzeugverkehrsflächen"]
[9491,"Referenz Fahrzeugverkehrsflächen"]
[94911,"Referenz Fahrzeugverkehrsflächen"]

{"sheet":"NC-Codes (alphabetisch)","index":2,"n_rows":832,"n_cols":2,"rows_kept":832,"cut":false,"hidden":false,"merged":[]}
["Nr.","Bezeichnung"]
[76113,"ABC Schutzraum"]
[89131,"Abfallverbrennungsraum"]
[64211,"Abklingraum Nuklearmedizin mit RLT 1"]
[74112,"Abstellfläche für Kfz"]
[74121,"Abstellfläche für Kfz im Gebäude integriert"]
[74122,"Abstellfläche für Kfz im Gebäude integriert mit RLT 1"]
[74111,"Abstellfläche für Kfz, einfach"]
[73112,"Abstellraum"]
[73113,"Abstellraum mit RLT 1"]
[73111,"Abstellraum, einfacher Ausbau"]
[72112,"Abwasseraufbereitung und Neutralisation mit RLT 1"]
[71912,"Abwasseraufbereitung und Neutralisation mit RLT1"]
[93131,"Abwurfschacht"]
[61121,"ambulante Operationen, Kategorie E; Raumklasse II"]
[63123,"Ambulante Operationen, Kategorie OP"]
[35121,"Anatomischer Präparierraum"]
[53632,"Anatomischer Übungsraum mit RLT 1"]
[59112,"Andachtsraum"]
[64314,"Angiographieraum mit RLT 2"]
[44111,"Annahme- und Ausgaberaum"]
[44112,"Annahme- und Ausgaberaum mit RLT 1"]
[64216,"Applikation - Diagnostik (U/B)"]
[42111,"Archiv"]
[42112,"Archiv mit RLT 1"]
[42113,"Archiv mit RLT 3"]
[42114,"Archiv Sicherheitsanforderungen und RLT 1"]
[41132,"Asservatenraum"]
[41133,"Asservatenraum mit RLT 1"]
[62122,"Audiometrieraum mit Erschütterungsschutz und RLT 2"]
[59114,"Aufbahrungsraum"]
[61311,"Aufbahrungsraum mit RLT 2"]
[39312,"Aufbereitungsraum für medizintechnisches Gerät mit RLT 1"]
[12111,"Aufenthaltsraum"]
[12112,"Aufenthaltsraum mit RLT 1"]
[12121,"Aufenthaltsraum mit Teeküche"]
[12122,"Aufenthaltsraum mit Teeküche und  RLT 1"]
[12123,"Aufenthaltsraum mit Teeküche und  RLT 3"]
[12113,"Aufenthaltsraum Raumklasse II (OP-Bereich)"]
[26111,"Aufsichtsraum"]
[26112,"Aufsichtsraum mit RLT 1"]
[26121,"Aufsichtsraum mit Überfallmeldeanlage und RLT 1"]
[68121,"Aufwachraum (postoperativ) mit RLT 2"]
[68122,"Aufwachraum (postoperativ) mit RLT 3"]
[62132,"Augen- U+B-Raum mit Laser, reflexionsfrei und RLT 2"]
[62131,"Augen-U + B-Raum mit RLT 2"]
[63225,"Ausleitungs-/Entsorgungsraum, Raumklasse II"]
[16132,"Ausnüchterungszelle mit RLT 3"]
[59113,"Aussegnungsraum"]
[58221,"Ausstellungsraum/ -fläche"]
[38131,"Backraum mit Sonderabsaugung und RLT 1"]
[78341,"Badezimmer in Wohnungen"]
[78342,"Badezimmer in Wohnungen mit RLT 1"]
[75111,"Bahnsteig"]
[71954,"Batterieraum"]
[72514,"Batterieraum"]
[85123,"Batterieraum"]
[71415,"Bedien- / Auswertraum Röntgen mit RLT 2"]
[68311,"Behandlungsplatz Dialyse mit RLT 2"]
[12211,"Bereitschaftsraum"]
[12214,"Bereitschaftsraum mit  Waschtisch und RLT 1"]
[12213,"Bereitschaftsraum mit RLT 1"]
[12221,"Bereitschaftsraum mit Sicherheitsanforderungen und RLT 1"]
[12212,"Bereitschaftsraum mit Waschtisch"]
[23212,"Besprechungsraum mit RLT 1"]
[23221,"Besprechungsraum mit Sicherheitsanforderungen und RLT 2"]
[23211,"Besprechungsraum/ Kommunikationsfläche"]
[65121,"Bestrahlung mit offenen Isotopen und RLT 2"]
[65115,"Bestrahlung mit offenen radioaktiven Stoffen und RLT 2"]
[65123,"Bestrahlung mit umschlossenen Isotopen - Behandlung und RLT 2"]
[65122,"Bestrahlung mit umschlossenen Isotopen - Vorbereitung und RLT 2"]
[65116,"Bestrahlung mit umschlossenen radioaktiven Stoffen und RLT 2"]
[66311,"Bestrahlungen mit RLT 1"]
[65114,"Bestrahlungsplanung mit RLT 3"]
[39521,"Bettenaufbereitungsraum mit RLT 1"]
[39512,"Bettendesinfektion maschinell mit RLT 1"]
[68211,"Bettenraum für die Behandlung Brandverletzter/ Verbrennungsstation mit RLT 3"]
[68241,"Bettenraum für die Pflege Frühgeborener mit RLT 3"]
[68242,"Bettenraum für die Pflege Querschnittgelähmter"]
[68212,"Bettenraum für Reverse Isolation mit RLT 3"]
[68231,"Bettenraum für Strahlenpatienten, offene Isotope und RLT 1"]
[68232,"Bettenraum für Strahlenpatienten, umschlossene Isotope und RLT 1"]
[68112,"Bettenraum Intensivbehandlung (ITS) mit RLT 3"]
[68111,"Bettenraum Intensivüberwachung (IMC) mit RLT 3"]
[39511,"Bettenreinigung manuell mit RLT 1"]
[66115,"Bewegungswannenbad mit RLT 1"]
[54111,"Bibliotheksraum"]
[54112,"Bibliotheksraum mit RLT 1"]
[53211,"Bildhauerklassenraum"]
[57321,"Bildstudioraum mit RLT 3"]
[53621,"Biologischer Übungsraum mit RLT 1"]
[32111,"Blechbearbeitung, Montage-, Stahlbau"]
[35611,"Brutschrankraum"]
[57111,"Bühnenraum Sporthalle"]
[57112,"Bühnenraum Theater mit RLT 2"]
[21115,"Büro im Küchenbereich mit RLT 1"]
[21122,"Büro mit besonderen Sicherheitsanforderungen und RLT 2"]
[21121,"Büro mit Sicherheitsanforderungen und RLT 2"]
[21111,"Büroraum"]
[21215,"Büroraum mit Archivfunktion"]
[21216,"Büroraum mit Archivfunktion und RLT 1"]
[21213,"Büroraum mit manuellem/ experimentellem Arbeitsplatz"]
[21214,"Büroraum mit manuellem/ experimentellem Arbeitsplatz und RLT 1"]
[21217,"Büroraum mit Materialausgabe"]
[21218,"Büroraum mit Materialausgabe und RLT 1"]
[21112,"Büroraum mit RLT1"]
[15211,"Cafeteria"]
[15212,"Cafeteria mit RLT 1"]
[53622,"Chemischer Übungsraum mit RLT 1"]
[35132,"Chemisch-technisches Labor mit bes. RLT-Anf. und einf. Strahlenschutz"]
[35131,"Chemisch-technisches Labor mit bes. RLT-Anforderungen"]
[53311,"Computer Pool/ CIP Pool mit RLT 2"]
[64311,"Computertomographieraum (CT) mit RLT 2"]
[61411,"Demonstrationsraum mit einfacher Ausstattung und RLT 1"]
[11131,"Diele"]
[11132,"Diele mit RLT 1"]
[21219,"Dolmetscherraum/-kabine mit RLT 1"]
[53721,"Drucktechnikwerkstatt mit Sonderabsaugung"]
[27213,"Dunkelkammer mit RLT 1"]
[64111,"Durchleuchtungsraum mit RLT 2"]
[66312,"Durchströmung mit RLT 1"]
[78333,"Duschraum"]
[78321,"Duschraum / Baderaum"]
[78323,"Duschraum / Baderaum barrierefrei mit RLT 1"]
[78322,"Duschraum / Baderaum mit RLT 1"]
[78334,"Duschraum mit RLT 1"]
[78325,"Duschraum mit Strahlenschutzmaßnahmen mit RLT 1"]
[71221,"DV-Großrechneranlagenraum mit RLT 2"]
[71211,"DV-Kleinrechneranlagenraum mit RLT 1"]
[86112,"DV-Verteilerraum"]
[11211,"Ein-/Zweibettzimmer"]
[11213,"Ein-/Zweibettzimmer mit RLT 1"]
[11212,"Ein-/Zweibettzimmer mit Waschtisch"]
[11214,"Ein-/Zweibettzimmer mit Waschtisch und RLT 1"]
[41121,"einfache Lagerhalle"]
[41111,"einfacher Lagerraum"]
[91311,"Eingangshalle"]
[63122,"Eingriffraum mit Lasereinsatz (z.B. Augenklinik: Lasik-Laser)"]
[63121,"Eingriffsraum"]
[63115,"Eingriffsraum mit besonderen hygienischen und RLT-Anforderungen"]
[63224,"Einleitungs-/Ausleitungsraum, Raumklasse II"]
[63223,"Einleitungsraum, Raumklasse II"]
[21222,"Einsatzzentrale"]
[21224,"Einsatzzentrale gesichert mit RLT 2"]
[21226,"Einsatzzentrale mit hygienischen Anf. und RLT 1"]
[21227,"Einsatzzentrale mit hygienischen Anf. und RLT2"]
[21225,"Einsatzzentrale mit hygienischen Anforderungen"]
[21223,"Einsatzzentrale mit RLT 1"]
[21113,"Einzelarbeitsplatzfläche"]
[21114,"Einzelarbeitsplatzfläche mit RLT 1"]
[16111,"Einzelhaftraum"]
[16112,"Einzelhaftraum mit RLT 1"]
[66611,"Einzelinhalation"]
[79111,"Einzelumkleideraum"]
[79113,"Einzelumkleideraum mit RLT1"]
[79112,"Einzelumkleideraum mit Waschbecken"]
[79114,"Einzelumkleideraum mit Waschbecken und RLT1"]
[55412,"Eissporthalle mit RLT 2"]
[85111,"Elektrische Stromversorgung"]
[34111,"Elektroniklabor mit RLT 2"]
[34112,"Elektroniklabor mit RLT 2 und Sondergase"]
[62412,"Endoskopieraum mit RLT 3"]
[62413,"Endoskopieraum mit RLT 3 und Strahlenschutz"]
[71911,"Entsorgungsraum Abwasser für Geräte, Maschinen und Anlagen"]
[44324,"Entsorgungsraum mit bes. hygienischen Anf., Strahlenschutz und RLT 3"]
[44323,"Entsorgungsraum mit hygienischen Anf. und RLT 3"]
[44322,"Entsorgungsraum mit Nassarbeitsplatz und RLT 1"]
[44321,"Entsorgungsraum mit RLT 1"]
[44325,"Entsorgungsraum Raumklasse II (OP-Bereich)"]
[61211,"Erste-Hilfe-Raum"]
[61212,"Erste-Hilfe-Raum mit medizinischer Ausstattung im Krankenhaus"]
[73211,"Fahrradabstellraum"]
[75112,"Fahrsteig"]
[94121,"Fahrzeugverkehrsfläche geneigt (Rampe)"]
[94122,"Fahrzeugverkehrsfläche geneigt (Rampe) mit RLT 1"]
[94111,"Fahrzeugverkehrsfläche horizontal"]
[94112,"Fahrzeugverkehrsfläche horizontal mit RLT 1"]
[86111,"Fernmeldetechnik"]
[21311,"Fernsprechraum/-kabine"]
[21312,"Fernsprechvermittlungsraum"]
[21313,"Fernsprechvermittlungsraum mit RLT 1"]
[27211,"Filmbearbeitungs- / Schneideraum mit RLT 1"]
[27212,"Filmmagazin-/-laderaum mit RLT 1"]
[71522,"Filmvorführraum mit RLT 1"]
[91132,"Fluchtbalkon"]
[92132,"Fluchtrampe als zweiter Rettungswegweg"]
[92131,"Fluchttreppenraum, -lauf"]
[75113,"Flugsteig"]
[91111,"Flur"]
[91131,"Flur als Fluchtweg"]
[91121,"Flur im Klinikbereich, Raumklasse II"]
[91122,"Flur im Laborbereich ab S3"]
[91123,"Flur in Tierhaltung, hochinstalliert"]
[91113,"Flur in Wohnungen"]
[91112,"Flur mit RLT 1"]
[27111,"Fotokopierraum / Druckerraum"]
[27112,"Fotokopierraum / Druckerraum mit RLT 1"]
[54151,"Freihandstellfläche mit RLT 1"]
[32411,"Frisör-/ Kosmetikarbeitsraum"]
[21221,"Funkzentrale mit RLT 2"]
[36622,"Futteraufbereitungsraum"]
[36621,"Futteraufbereitungsraum, einfache Ausführung"]
[41511,"Futtermittellager"]
[41513,"Futtermittellager mit bes. hygienischen Anf. und RLT 3"]
[41512,"Futtermittellager mit Verarbeitung und RLT 1"]
[79311,"Garderobe"]
[79312,"Garderobe mit  RLT 1"]
[86121,"Gebäudeleittechnik (GLT)"]
[62511,"Geburtshilfe-/ Vorbereitungs- und Ergänzungsraum"]
[62513,"Geburtshilferaum m. Sonderausstattung und RLT 1"]
[62512,"Geburtshilferaum mit RLT 1"]
[16121,"Gemeinschaftshaftraum"]
[16122,"Gemeinschaftshaftraum mit RLT 1"]
[39315,"Geräteaufbereitung und -lager; Raumklasse II (OP-Bereich)"]
[39711,"Geräteraum Labor"]
[63214,"Geräteraum Raumklasse Ia"]
[63213,"Geräteraum Raumklasse Ib"]
[23121,"Gerichtssaal"]
[23122,"Gerichtssaal mit RLT 1"]
[38411,"Geschirrrückgabe"]
[39214,"Gesundheitswäscherei, Raumklasse II"]
[37111,"Gewächshaus"]
[37211,"Gewächshaus experimentell mit besonderen klimatischen Anforderungen und RLT3"]
[37114,"Gewächshaus mit Pflanztischen"]
[37112,"Gewächshaus mit RLT1"]
[37311,"Gewächshausraum S1"]
[32113,"Gießerei, Schweißerei"]
[61221,"Gipsraum mit RLT 1"]
[63226,"Gipsraum OP, Raumklasse II"]
[59111,"Gottesdienstraum"]
[74211,"Großgeräteabstellfläche"]
[74212,"Großgeräteabstellfläche mit RLT 1"]
[38111,"Großküche mit Sonderabsaugung, Lüftungsdecke und RLT 1"]
[45113,"Großmarkthallenverkaufsraum mit RLT 2"]
[22111,"Großraumbüro"]
[22112,"Großraumbüro mit RLT 1"]
[22113,"Großraumbüro mit Schalter und RLT 2"]
[79121,"Gruppenumkleideraum"]
[79122,"Gruppenumkleideraum mit Waschtisch und RLT 1"]
[66511,"Gymnastikraum mit RLT 1"]
[26123,"Haftaufsichtsraum mit RLT 2"]
[16113,"Haftraum besonders gesichert mit RLT 3"]
[16133,"Haftsprechraum mit RLT 1"]
[65112,"Halbtiefen-/ Tiefenbestrahlung mit RLT 3"]
[31421,"Halle für chemische Versuche mit RLT2"]
[31411,"Halle für physikalische Versuche mit RLT 2"]
[55111,"Halle für Turnen und Spiele"]
[89111,"Hausanschlussraum"]
[32521,"Hausmeisterwerkstatt"]
[53141,"Hauswirtschaftlicher Unterrichtsraum"]
[39111,"Hauswirtschaftsraum"]
[39121,"Hauswirtschaftsraum Schule"]
[41123,"Hochregallager"]
[51111,"Hör-/Lehrsaal anst. m. Exp.-Bühne und RLT 1"]
[51112,"Hör-/Lehrsaal anst. m. Exp.-Bühne, mit labortech. Anf. und RLT 1"]
[51131,"Hör-/Lehrsaal anst. o. Exp.-Bühne und RLT 1"]
[51132,"Hör-/Lehrsaal anst. o. Exp.-Bühne, mit labortech. Anf. und RLT 1"]
[51121,"Hör-/Lehrsaal eben m. Exp.-Bühne und RLT 1"]
[51122,"Hör-/Lehrsaal eben m. Exp.-Bühne, mit labortech. Anf. und RLT 1"]
[51141,"Hör-/Lehrsaal eben o. Exp.-Bühne  und RLT 1"]
[51142,"Hör-/Lehrsaal eben o. Exp.-Bühne, mit labortech. Anf. und RLT 1"]
[36321,"Hundezwinger"]
[63131,"Hybrid OP"]
[63132,"Hybrid-Operationsraum Angiographie"]
[63134,"Hybrid-Operationsraum CT"]
[63133,"Hybrid-Operationsraum intraoperativer MRT"]
[71112,"Hydrauliktechnikraum für Geräte"]
[71113,"Hydrauliktechnikraum für Maschinen und Anlagen"]
[66314,"Hyperthermietherapie mit RLT 3"]
[68221,"Infektionspflegebettenraum mit RLT 1"]
[89221,"Installationskanal"]
[89121,"Installationsraum"]
[89211,"Installationsschacht"]
[31211,"Instandsetzungs-/ Wartungshalle"]
[39311,"Instrumentenreinigungsraum mit RLT 1"]
[68312,"Intensivbehandlung Akutdialyse mit RLT 3"]
[35512,"Isotopenlabor mit bes. baukonstruktiven und RLT-Anforderungen mit Schleuse"]
[35513,"Isotopenlabor mit Dekontamination von Abwasser u. Abluft u. bes. RLT-Anforderungen"]
[35511,"Isotopenlabor mit Dekontamination von Abwasser und Abluft"]
[35514,"Isotopenlabor mit erhöhten baukonstruktiven und RLT-Anforderungen mit Schleuse"]
[43421,"Kadaverraum mit RLT 2"]
[39322,"Käfigdesinfektion maschinell, rein, mit RLT 3"]
[39323,"Käfigdesinfektion maschinell, unrein, RLT1"]
[36411,"Käfighaltung"]
[36421,"Käfighaltung  mit RLT-Anforderungen"]
[36431,"Käfighaltung  SPF mit Schleuse für IVC"]
[36412,"Käfighaltung mit RLT 3"]
[36422,"Käfighaltung mit RLT-Anforderungen u. Laborarbeitsplatz (hochhygienische Käfighaltung mit bes. RLT-Anforderungen)"]
[36423,"Käfighaltung mit RLT-Anforderungen und einfachem Strahlenschutz"]
[36432,"Käfighaltung SPF mit Schleuse (hochhygienische Käfighaltung mit bes. RLT-Anforderungen)"]
[39321,"Käfigreinigung manuell mit RLT 1"]
[35215,"Kälte-Labor"]
[25113,"Kartenschalter"]
[25114,"Kartenschalter mit RLT 1"]
[54131,"Katalograum/ -fläche mit RLT 1"]
[45112,"Kaufhausverkaufsraum mit RLT 1"]
[55415,"Kegelbahn mit RLT 1"]
[34241,"Kernphysiklabor mit Dekontamination von Abwasser und Abluft"]
[74221,"Kettenfahrzeugabstellfläche"]
[73411,"KFA/ AWT- Container-Stauraum"]
[73412,"KFA/ AWT-Station und Containerbahnhof"]
[74131,"KFZ-Abstellfläche mit Sicherheitsanforderungen"]
[32522,"Kfz-Waschhalle"]
[32511,"Kfz-Werkstatt mit Sonderabsaugung"]
[67113,"Kinderpflegebettenraum mit RLT 1"]
[12311,"Kinderspielraum"]
[12312,"Kinderspielraum mit  RLT 1"]
[73221,"Kinderwagenabstellraum"]
[23233,"Kindgerechter Vernehmungsraum mit RLT 1"]
[45221,"Kiosk mit RLT 1"]
[61122,"kleine operative/ invasive Eingriffe"]
[12321,"Kleinkindschlafen"]
[12322,"Kleinkindschlafen mit RLT 1"]
[35621,"Klimakammer"]
[37213,"Klimakammer, RLT 2"]
[61413,"Klinischer Konferenzraum PACS mit RLT 2"]
[66114,"Kneipp'sche Anwendungen mit RLT 1"]
[23111,"Konferenzraum"]
[23112,"Konferenzraum mit bes. tech. Anf. und RLT 1"]
[24111,"Konstruktionsraum"]
[24112,"Konstruktionsraum mit RLT 1"]
[73421,"Krankentransportgeräteraum"]
[59116,"Kreuzgang"]
[33411,"Kriminaltechnisches Labor"]
[33412,"Kriminaltechnisches Labor_Täter/ Opfer-Raum"]
[21314,"Krypto Raum / Datenübertragung verschlüsselt mit RLT 2"]
[11121,"Küche in Wohnung"]
[11122,"Küche in Wohnung mit RLT 1"]
[38121,"Küchen zur Speiseerwärmung mit RLT 1"]
[38211,"Küchenvorbereitungsraum mit Lüftungsdecke und RLT 1"]
[43113,"Kühlraum Cook and Chill"]
[43211,"Kühlraum für medizinische Zwecke"]
[43311,"Kühlraum für wissenschaftliche Zwecke (nur Kühlung)"]
[43321,"Kühlraum für wissenschaftliche Zwecke (Tiefkühlung)"]
[43221,"Kühlzelle für medizinische Zwecke"]
[58121,"Künstleratelier"]
[79321,"Künstlergarderobe"]
[79322,"Künstlergarderobe mit Waschtisch und RLT 1"]
[35213,"Labor für analytisch- /präparativ-chemische Arbeiten mit RLT 2"]
[35214,"Labor für analytisch-/ präparativ-chemische Arbeiten mit Klimakonstanz und RLT 3"]
[35212,"Labor für analytisch-/ präparativ-chemische Arbeiten mit RLT 1"]
[35211,"Labor für analytische Arbeiten"]
[33311,"Labor für stationäre Maschinen"]
[35422,"Labor m. bes. Hygieneanf. / RLT-Anf. u. Schleuse"]
[35423,"Labor m. bes. Hygieneanf./ sep. RLT-Anlage u. Schleuse (S3)"]
[35421,"Labor mit besonderen Hygieneanforderungen, Zugang über Schleuse ..."]
[35311,"Labor mit Medienversorgung"]
[35411,"Labor mit zusätzlichen Hygieneanforderungen"]
[35412,"Labor mit zusätzlichen Hygieneanforderungen und Medienversorgung"]
[35413,"Labor mit zusätzlichen hygienischen und besonderen RLT-Anforderungen"]
[45212,"Ladenraum"]
[41122,"Lagerhalle"]
[41112,"Lagerraum"]
[41134,"Lagerraum bes. gesichert mit RLT 2"]
[41421,"Lagerraum für Chemikalien"]
[41411,"Lagerraum für Explosivstoffe"]
[83121,"Lagerraum für Heizbrennstoffe fest"]
[83122,"Lagerraum für Heizbrennstoffe flüssig"]
[83123,"Lagerraum für Heizbrennstoffe gasförmig"]
[41212,"Lagerraum für Lebensmittel mit RLT 1"]
[41211,"Lagerraum für Milchtank"]
[41116,"Lagerraum für Putzmittel"]
[41151,"Lagerraum für sterile Erde"]
[41115,"Lagerraum mit bes. tech. Anforderungen"]
[41311,"Lagerraum mit einfachen Strahlenschutz-Anforderungen"]
[41312,"Lagerraum mit höchsten Strahlenschutz-Anforderungen und Zugang über Schleuse"]
[41213,"Lagerraum mit hygienischen Anforderungen und RLT 1"]
[41113,"Lagerraum mit RLT 1"]
[41114,"Lagerraum mit RLT 3"]
[75114,"Landesteg"]
[67131,"Langzeitpflegebettenraum mit RLT 2"]
[32116,"Laser-Schneide-Werkstatt"]
[36322,"Laufgang"]
[66221,"Laufschule"]
[43112,"Lebensmittelauftaukühlraum"]
[43111,"Lebensmittelkühlraum"]
[43121,"Lebensmitteltiefkühlraum"]
[58211,"Lehr- und Schausammlungsraum"]
[43412,"Leichenkühlraum"]
[43411,"Leichenraum für Anatomie"]
[67132,"Leichtpflegebettenraum mit RLT 1"]
[54121,"Leseraum mit RLT 1"]
[33211,"Lichttechnisches Labor"]
[65113,"Linearbeschleuniger mit RLT 3"]
[74241,"Luftfahrzeugabstellfläche"]
[42211,"Magazin"]
[42212,"Magazin mit Klimakonstanz"]
[64315,"Magnetresonanz-Tomographieraum (NMR) mit RLT 3"]
[88111,"Maschinenraum für Aufzuganlagen"]
[88121,"Maschinenraum für Förderanlagen"]
[71981,"Maschinenraum für Rohrpostanlage"]
[66521,"Massageraum mit RLT 1"]
[41162,"Medikamentenlager; Raumklasse II (OP-Bereich)"]
[54141,"Mediothekraum mit RLT 1"]
[63228,"Medizinische Entsorgung OP, Raumklasse II"]
[63227,"Medizinische Versorgung OP, Raumklasse II"]
[66112,"Medizinisches Teilbad mit RLT 1"]
[66111,"Medizinisches Wannenbad mit RLT 1"]
[11221,"Mehrbettwohn-/ schlafraum"]
[11222,"Mehrbettwohn-/ schlafraum mit RLT 1"]
[55121,"Mehrzweckhalle mit RLT 2"]
[71963,"Meldeanlageraum (Brandmeldeanlage, Einbruchmeldeanlage, etc.)"]
[86122,"Meldeanlageraum (Brandmeldeanlage, Einbruchmeldeanlage, etc.)"]
[36711,"Melkraum"]
[46112,"Messehalle mit RLT 1"]
[64223,"Messraum für Positronen-Emissions-Tomographie (PET) mit RLT 3"]
[64222,"Messraum mit (Gamma) Kamera und RLT 2"]
[64221,"Messraum mit Einkanal-Messplatz und RLT 2"]
[76112,"Militärischer Schutzraum"]
[76212,"Militärischer Schutzraum als Mehrzweckraum"]
[53221,"Modellierraum - Plastisches Gestalten mit Sonderabsaugung"]
[73311,"Müllsammelraum"]
[73313,"Müllsammelraum gekühlt mit RLT 2"]
[73312,"Müllsammelraum mit RLT 1"]
[41172,"Munitions-, Waffenlagerraum mit RLT 1"]
[58113,"Museumgroßraum mit RLT 3"]
[58111,"Museumsraum"]
[58115,"Museumsraum für lichtempfindliche Exponate mit RLT 3"]
[58114,"Museumsraum für Wechselausstellung mit RLT 3"]
[58112,"Museumsraum mit RLT 1"]
[58117,"Museumsraum mit Seitenlicht und RLT 3"]
[58116,"Museumsraum mit Tageslichtdecke und RLT 3"]
[53411,"Musik-/Sprechunterrichtsraum mit RLT 1"]
[46121,"Musterausstellungsraum"]
[46122,"Musterausstellungsraum mit RLT 1"]
[67121,"Neugeborenenpflegebettenraum mit RLT 2"]
[77111,"nicht ausgebaute Aufenthaltsfläche"]
[77112,"nicht ausgebaute Bürofläche"]
[77113,"nicht ausgebaute Laborfläche"]
[77114,"nicht ausgebaute Lagerfläche"]
[67111,"Normalpflegebettenraum"]
[85121,"Notstromversorgung"]
[64512,"Nuklearmedizinischer Messraum für Tiere mit RLT 1"]
[65111,"Oberflächenbestrahlung mit RLT 3"]
[63111,"Operationsraum"]
[63117,"Operationsraum für Kinder"]
[63124,"Operationsraum mit reduzierten RLT-Anforderungen"]
[63113,"Operationsraum mit Sonderausstattung"]
[63114,"Operationsraum mit Sonderausstattung und Strahlenschutz"]
[63116,"Operationsraum mit Strahlen-/ Laserschutz"]
[63125,"Operationsraum mit Strahlen-/ Laserschutz, reduzierten RLT-Anforderungen"]
[63112,"Operationsraum mit Strahlenschutz"]
[57212,"Orchesterprobenraum mit RLT 3"]
[57211,"Orchesterraum mit RLT 3"]
[44211,"Packraum"]
[44212,"Packraum mit RLT 1"]
[66213,"Packungen - Behandlung mit RLT 1"]
[66212,"Packungen - Vorbereitung mit RLT 1"]
[23123,"Parlamentssaal mit RLT 3"]
[78324,"Patientendusche / Patientenbad mit RLT 1"]
[13321,"Patientenruheraum"]
[13322,"Patientenruheraum mit RLT 1"]
[78114,"Patiententoilette mit RLT 1"]
[26212,"Patientenüberwachungsraum mit bes. Anf. und RLT 3"]
[26211,"Patientenüberwachungsraum mit RLT 1"]
[79115,"Patientenumkleide U+B-Raum mit RLT1"]
[64213,"Patientenvorbereitung (Nukl. Med.)"]
[63222,"Patientenvorbereitungsraum OP, Raumklasse II"]
[13111,"Pausenfläche"]
[13112,"Pausenfläche mit  RLT 1"]
[13211,"Pausenhalle"]
[13212,"Pausenhalle mit  RLT 1"]
[79242,"Personalschleuse im strahlengeschützten Bereich mit Dekontaminationsdusche und RLT 1"]
[79243,"Personalschleuse m. bes. baukonstr., hygien., RLT-Anforderungen u. Strahlenschutz"]
[79231,"Personalschleuse mit hygienischen Anf. und RLT 1"]
[64316,"PET-CT"]
[64317,"PET-MRT"]
[39411,"Pferdezubehör/Melkzubehör"]
[41152,"Pflanzentopflager mit Spüle und RLT 3"]
[37212,"Pflanzenzuchtraum experimentell (Raum mit Klimakammern bestückt)"]
[37113,"Pflanzenzuchtvorbereitungsraum"]
[39614,"Pflegearbeitsraum rein mit bes. hygienischen Anf. und RLT 3"]
[39611,"Pflegearbeitsraum rein, mit RLT 1"]
[39615,"Pflegearbeitsraum unrein mit Strahlenschutz, Sonderabsaugung"]
[39612,"Pflegearbeitsraum unrein, mit RLT 1"]
[67114,"Pflegebettenraum, Raumklasse II"]
[39613,"Pflegestützpunkt mit RLT 1"]
[26122,"Pförtner/ Wache mit RLT 2"]
[26113,"Pförtnerraum"]
[26114,"Pförtnerraum mit RLT 1"]
[34233,"Physikalischer Meß- und Wägeraum mit DV (physikalischer Messraum)"]
[34234,"Physikalischer Meß- und Wägeraum mit DV und RLT-Anforderungen"]
[34231,"Physikalischer Messraum mit besonderen RLT-Anforderungen"]
[34232,"Physikalischer Messraum mit besonderen RLT-Anforderungen und Medienversorgung"]
[53612,"Physikalisch-technischer Übungsraum mit RLT 1"]
[34211,"Physiklabor (einfaches physikalisches Messlabor)"]
[34225,"Physiklabor (Reinraum mit bes. RLT.-Anf.)"]
[34212,"Physiklabor mit bes. Anforderungen"]
[34213,"Physiklabor mit besonderen RLT Anforderungen"]
[34223,"Physiklabor und Messraum mit einfachem Strahlenschutz"]
[34221,"Physiklabor und Messraum mit elektromagnetischer Abschirmung"]
[34224,"Physiklabor und Messraum mit erhöhtem Strahlenschutz und RLT-Anforderungen"]
[34222,"Physiklabor und Messraum mit Erschütterungsschutz (NMR)"]
[37411,"Pilzzuchtraum"]
[27113,"Plotterraum"]
[27114,"Plotterraum mit RLT 1"]
[44113,"Poststelle"]
[57121,"Probebühne"]
[31111,"Produktionshalle für Grundstoffe"]
[31112,"Produktionshalle für Investitions- und Versorgungsgüter"]
[31113,"Produktionshalle für Nahrungs- und Genussmittel"]
[61412,"Projektions-/Demonstrationsraum mit RLT 2"]
[71521,"Projektionsraum mit RLT 1"]
[32421,"Prothetische / Dental-Werkstatt mit Sonderabsaugung"]
[67212,"Psychiatrischer Pflegeraum mit Pflegestandard und RLT 1"]
[67211,"Psychiatrischer Pflegeraum mit RLT 1"]
[78511,"Putzraum mit Ausguss"]
[78512,"Putzraum mit Ausguss und RLT 1"]
[78513,"Putzraum mit Ausguss, bes. hygienischen Anf. und RLT 1"]
[78514,"Putzraum mit Ausguss, Raumklasse II im OP-Bereich"]
[64611,"Radionuklidlabor"]
[55413,"Radsporthalle mit RLT 1"]
[27115,"Rapid-Prototyping (3D-Drucker) mit RLT 1"]
[81121,"Raum für Abwasseraufbereitung und Neutralisation mit RLT 1"]
[72111,"Raum für Abwasserbeseitigung"]
[81111,"Raum für Abwasserhebeanlage"]
[55214,"Raum für Abwehr- und Zugriffstraining mit RLT 1"]
[36511,"Raum für Beckenhaltung"]
[72612,"Raum für Datentechnik"]
[71953,"Raum für Dieselaggregat"]
[72513,"Raum für Dieselaggregat"]
[85122,"Raum für Dieselaggregat"]
[72511,"Raum für elektrische Stromversorgung"]
[72611,"Raum für Fernmeldetechnik"]
[83111,"Raum für Heizung und Brauchwassererwärmung"]
[55213,"Raum für Integrationstraining mit RLT 1"]
[36311,"Raum für Käfighaltung"]
[36615,"Raum für Nassreinigung Tiere"]
[71952,"Raum für Notstromversorgung"]
[72512,"Raum für Notstromversorgung"]
[71212,"Raum für Serveranlagen-Bedienplatz mit RLT 1"]
[71413,"Raum für Sonderbedienung Tierhaltung/ Versuchssteuerung mit RLT 2"]
[71414,"Raum für Sondersystem (z.B. Monitoring / GMP) mit RLT 2"]
[36111,"Raum für Stallhaltung"]
[36211,"Raum für Stallhaltung"]
[71111,"Raum für Technik mit RLT 2"]
[71921,"Raum für Wasseraufbereitung"]
[72212,"Raum für Wasseraufbereitung"]
[82121,"Raum für Wasseraufbereitung"]
[72211,"Raum für Wasserversorgung"]
[82111,"Raum für Wasserversorgung"]
[66612,"Rauminhalation mit RLT 1"]
[94911,"Referenz Fahrzeugverkehrsflächen"]
[93911,"Referenz Schächte für Förderanlagen"]
[88911,"Referenzraum Aufzug- und Förderanlagen"]
[85911,"Referenzraum elektrische Stromversorgung"]
[86911,"Referenzraum Fernmelde- und Gebäudeleittechnik"]
[91911,"Referenzraum Flure und Hallen"]
[81911,"Referenzraum für Abwasseraufbereitung und -beseitigung"]
[84911,"Referenzraum Gase und Flüssigkeiten"]
[83911,"Referenzraum Heizung und Brauchwassererwärmung"]
[87911,"Referenzraum Raumlufttechnik"]
[89911,"Referenzraum sonstige betriebs. Anlagen"]
[92911,"Referenzraum Treppe"]
[82911,"Referenzraum Wasserversorgung"]
[38112,"Regenerierküche (cook and chill) mit RLT 2"]
[71511,"Regieraum mit RLT 2"]
[42121,"Registratur"]
[42122,"Registratur mit Arbeitsplatz"]
[66421,"Rehabilitationsraum Arbeitstherapie"]
[66411,"Rehabilitationsraum Spieltherapie"]
[71945,"Reindampf-Erzeugung"]
[72412,"Reindampf-Erzeugung"]
[84112,"Reindampf-Erzeugung"]
[31515,"Reinraumklasse bis 10"]
[31514,"Reinraumklasse bis 100"]
[31513,"Reinraumklasse bis 1000"]
[31512,"Reinraumklasse bis 10000"]
[31511,"Reinraumklasse bis 100000"]
[55414,"Reitsporthalle"]
[63212,"Richtraum Raumklasse Ia"]
[63211,"Richtraum Raumklasse Ib"]
[92211,"Rolltreppe, -rampe"]
[64112,"Röntgenaufnahmeraum mit RLT 2"]
[64113,"Röntgenuntersuchungsraum experimentell mit RLT 2"]
[64114,"Röntgenvorbereitungsraum mit RLT 2"]
[13311,"Ruheraum"]
[13313,"Ruheraum mit RLT 1"]
[13312,"Ruheraum mit Waschtisch"]
[13314,"Ruheraum mit Waschtisch u. RLT 1"]
[59115,"Sakristei"]
[42131,"Sammlungsraum"]
[78311,"Sanitärraum"]
[78312,"Sanitärraum mit RLT 1"]
[78315,"Sanitärzelle mit Strahlenschutzmaßnahmen und RLT 2"]
[78313,"Sanitärzelle Patientenzimmer mit RLT 1"]
[78314,"Sanitärzelle Patientenzimmmer mit bes. hygienischen Anf. mit RLT 1"]
[67122,"Säuglingspflegebettenraum mit RLT 2"]
[78231,"Saunaraum"]
[93124,"Schacht für Allgemeinen WarenTransport (AWT)"]
[93111,"Schacht für Personenaufzug"]
[93123,"Schacht für Rohrpost"]
[93121,"Schacht mit Lieferaufzug"]
[93122,"Schacht mit Materialaufzug"]
[33221,"Schalltechnisches Labor"]
[71311,"Schaltraum"]
[71314,"Schaltraum für  Anlagen mit RLT 1"]
[71313,"Schaltraum für Förderanlagen mit RLT 1"]
[71312,"Schaltraum mit bes. bauk./ tech. Anf. und RLT 1"]
[71412,"Schaltraum OP mit RLT 3"]
[71411,"Schaltraum Radiologie mit RLT 2"]
[64313,"Schichtaufnahmenraum mit RLT 2"]
[74231,"Schienenfahrzeugabstellfläche"]
[74232,"Schienenfahrzeugabstellfläche für kraftstoffbetriebene Fahrzeuge mit RLT 1"]
[55311,"Schießsportraum mit Medienunterstützung und RLT 1"]
[91212,"Schleuse (Durchgang)"]
[91222,"Schleuse mit Sicherheitsanforderungen S3"]
[91223,"Schleuse mit Sicherheitsanforderungen Strahlenschutz"]
[91224,"Schleuse mit Vereinzelungsanlage"]
[91221,"Schleuse Tierhaltung SpezifiziertPathogenFrei"]
[32112,"Schlosserei, Härterei, Schmiede"]
[78221,"Schminkraum"]
[78223,"Schminkraum mit Waschbecken und RLT 1"]
[78222,"Schminkraum mit Waschtisch"]
[79411,"Schrankraum"]
[79412,"Schrankraum mit RLT 1"]
[21211,"Schreibdienst"]
[71944,"Schwarzdampf-Erzeugung"]
[72411,"Schwarzdampf-Erzeugung"]
[84111,"Schwarzdampf-Erzeugung"]
[66116,"Schwimmbecken Nasstherapie mit RLT 1"]
[55411,"Schwimmhalle mit RLT 1"]
[66211,"Schwitzbad mit RLT 1"]
[21212,"Sekretariat"]
[52211,"Seminar-/ Unterrichtsgroßraum"]
[52212,"Seminar-/ Unterrichtsgroßraum mit RLT 1"]
[52111,"Seminar-/ Unterrichtsraum einfach"]
[52112,"Seminar-/ Unterrichtsraum mit Medien"]
[52113,"Seminar-/ Unterrichtsraum mit Medien und RLT 1"]
[52114,"Seminar-/ Unterrichtsraum Naturwissenschaften"]
[71222,"Serverraum mit Sicherheitsanforderungen und RLT 2"]
[92121,"Sicherheitstreppenraum"]
[62121,"Sinnesphysiologischer U + B-Raum mit RLT 2"]
[66412,"Snoezelraum mit RLT 2"]
[55416,"Sondersporthalle"]
[31911,"Sonderversuchshalle"]
[72911,"Sonstiger Zentraler Ver- u. Entsorgungsraum"]
[89141,"Sonstiger Zentraler Ver- u. Entsorgungsraum"]
[38311,"Speiseausgabe/ Getränkeausgabe mit Sonderabsaugung und RLT 1"]
[15111,"Speiseraum"]
[15112,"Speiseraum mit RLT 1"]
[15121,"Speisesaal"]
[15122,"Speisesaal mit RLT 1"]
[64312,"Spezialaufnahmenraum mit RLT 2"]
[55211,"Sportübungsraum"]
[55212,"Sportübungsraum mit RLT 1"]
[53321,"Sprachlabore mit RLT 1"]
[23231,"Sprechzimmer"]
[23232,"Sprechzimmer mit RLT 1"]
[38421,"Spülküche mit Rückgabeband, Lüftungsdecke und RLT 1"]
[39421,"Spülraum im Labor mit RLT 3"]
[38422,"Spülraum in Küchen mit Lüftungsdecke und RLT 1"]
[39422,"Spülraum mit Strahlenschutz und RLT 3"]
[41161,"Sterilgutversorgungslager (Lager im OP-Bereich), Raumklasse II"]
[39313,"Sterilisationsraum mit Sonderabsaugung und RLT 1"]
[39213,"Stiefelwaschraum mit RLT 1"]
[64511,"Strahlendiagnostikraum Tiermedizin mit RLT 1"]
[45111,"Supermarktverkaufsraum mit RLT 1"]
[67112,"Tagesklinischer Pflegeplatz"]
[55221,"Tanzraum mit RLT 1"]
[31311,"Technologische Versuchshalle mit RLT 2"]
[33111,"Technologisches Labor"]
[33115,"Technologisches Labor mit Berstwänden"]
[33112,"Technologisches Labor mit erhöhten Anforderungen"]
[33113,"Technologisches Labor mit Erschütterungsschutz"]
[33114,"Technologisches Labor mit zusätzlichen Anforderungen,"]
[13121,"Teeküche (ohne Aufenthalt)"]
[13122,"Teeküche (ohne Aufenthalt) mit RLT 1"]
[53731,"Textil-/ Lederwerkstatt"]
[53121,"Textilarbeitsraum"]
[45213,"Thekenbereich"]
[45214,"Thekenbereich mit RLT 1"]
[45211,"Ticket Schalter"]
[63311,"Tierendoskopieraum mit RLT 1"]
[36221,"Tierhaltung experimentell"]
[36222,"Tierhaltung experimentell mit RLT 3"]
[61512,"Tiermedizinischer U + B Raum mit besonderer Ausstattung und RLT 2"]
[61511,"Tiermedizinischer U + B Raum mit einfacher medizinischer Ausstattung und RLT 1"]
[63312,"Tieroperationsraum mit RLT 3"]
[63313,"Tieroperationsraum mit Strahlenschutz und RLT 3"]
[36611,"Tierpflegeraum"]
[36612,"Tierpflegeraum mit RLT 1"]
[36614,"Tierpflegeraum/Quarantäne"]
[67213,"Time-Out-Raum mit RLT 2"]
[78111,"Toilette"]
[78113,"Toilette barrierefrei mit RLT 1"]
[78112,"Toilette mit RLT 1"]
[78115,"Toilette mit Strahlenschutzmaßnahmen und  RLT 2"]
[57311,"Tonstudioraum mit RLT 3"]
[66222,"Traktionsraum"]
[92114,"Treppe in Wohnungen"]
[92111,"Treppenraum, -lauf, Rampe"]
[92112,"Treppenraum, -lauf, Rampe mit RLT 1"]
[64612,"Tresor mit Schleuse (Heißlabor)"]
[41131,"Tresorraum"]
[39231,"Trocknungsraum für Kleidung mit RLT 2"]
[93125,"Tunnel für Materialförderanlagen (AWT)"]
[62141,"U + B Raum Atemphysiologie"]
[62142,"U + B Raum Atemphysiologie mit RLT 2"]
[62213,"U + B Raum Herz/ Kreislaufdiagnostik mit RLT 3"]
[62211,"U + B Raum Herz/Kreislaufdiagnostik mit RLT 1"]
[62212,"U + B Raum Herz/Kreislaufdiagnostik mit RLT 2"]
[61114,"U + B Raum mit Patienten WC und medizinischer Ausstattung und RLT 1"]
[61113,"U + B Raum mit Waschtisch und medizinischer Ausstattung"]
[61118,"U + B Raum mit Waschtisch und RLT 1"]
[62111,"U + B Raum Neurophysiologie mit RLT 1"]
[62112,"U + B Raum Neurophysiologie mit RLT 2"]
[61111,"U + B Raum/Arztsprechzimmer"]
[61112,"U + B Raum/Arztsprechzimmer mit Waschtisch"]
[61115,"U + B Vorbereitungsraum mit RLT 1"]
[52311,"Übungsraum"]
[52312,"Übungsraum mit RLT 1"]
[53611,"Übungsraum Naturwissenschaften"]
[92122,"Übungstreppenhaus IGT (Integrationstraining)"]
[64411,"Ultraschalldiagnostikraum mit RLT 1"]
[64412,"Ultraschalldiagnostikraum mit RLT 2"]
[63229,"Umbettschleuse, Raumklasse II"]
[79211,"Umkleideschleuse"]
[79221,"Umkleideschleuse im OP-Bereich, Raumklasse II"]
[79241,"Umkleideschleuse im strahlengeschützten Bereich und RLT 1"]
[79212,"Umkleideschleuse mit Waschtisch"]
[79213,"Umkleideschleuse mit Waschtisch und RLT 1"]
[64217,"Untersuchung- und Behandlungsraum"]
[66113,"Unterwasserdruckstrahlmassage mit RLT 1"]
[91115,"Verbindungssteg"]
[53511,"Verhaltensbeobachtungsraum"]
[46111,"Verkaufsausstellungsraum"]
[44221,"Versandraum"]
[71962,"Versorgungsraum Datentechnik für Geräte, Maschinen und Anlagen"]
[72415,"Versorgungsraum Druckluft"]
[84123,"Versorgungsraum Druckluft"]
[71943,"Versorgungsraum Druckluft für Geräte, Maschinen und Anlagen"]
[71961,"Versorgungsraum Fernmeldetechnik für Geräte, Maschinen und Anlagen"]
[72414,"Versorgungsraum Flüssigkeiten"]
[84122,"Versorgungsraum Flüssigkeiten"]
[71942,"Versorgungsraum Flüssigkeiten für Geräte, Maschinen und Anlagen"]
[72413,"Versorgungsraum Gase"]
[84121,"Versorgungsraum Gase"]
[71941,"Versorgungsraum Gase für Geräte, Maschinen und Anlagen"]
[71973,"Versorgungsraum Kälte für Geräte, Maschinen und Anlagen"]
[87111,"Versorgungsraum Luft ohne Kälte"]
[87112,"Versorgungsraum Luft u. Kälte"]
[44313,"Versorgungsraum mit hygienischen Anf. und RLT 3"]
[44312,"Versorgungsraum mit Nassarbeitsplatz und RLT 1"]
[44311,"Versorgungsraum mit RLT 1"]
[44314,"Versorgungsraum Raumklasse II (OP-Bereich)"]
[71951,"Versorgungsraum Strom für Geräte, Maschinen und Anlagen"]
[16131,"Verwahrraum mit RLT 1"]
[66313,"Vibrationsmassage mit RLT 1"]
[39721,"Vorbereitungsraum Geisteswissenschaft"]
[39713,"Vorbereitungsraum Labor mit Strahlenschutz, Sonderabsaugung"]
[39712,"Vorbereitungsraum mit labortech. Einrichtungen und RLT 1"]
[39722,"Vorbereitungsraum Naturwissenschaft"]
[64212,"Vorbereitungsraum nuklearmedizinische Diagnostik mit RLT 1"]
[91114,"Vorraum"]
[16134,"Vorraum für besonders gesicherten Haftraum mit RLT 1"]
[26115,"Wachraum mit RLT 2"]
[41171,"Waffenschließfächer mit Ladeecke"]
[38423,"Wagenwäsche für Küche mit RLT 1"]
[13221,"Wandelhalle"]
[13222,"Wandelhalle mit RLT 1"]
[44121,"Warenannahme Lebensmittel (Umpackraum)"]
[44122,"Warenannahme mit hygienischen Anf. (Lebensmittel)"]
[36613,"Wärmetherapie / Solarium mit RLT1"]
[14211,"Wartehalle"]
[14213,"Wartehalle mit bes. bauk./ tech. Anf."]
[14214,"Wartehalle mit bes. bauk./ tech. Anf. und RLT 1"]
[14215,"Wartehalle mit bes. bauk./ tech. Anf. und RLT 2"]
[14212,"Wartehalle mit RLT 1"]
[14111,"Warteraum/ Wartefläche"]
[14113,"Warteraum/ Wartefläche mit bes. bauk./ tech. Anf."]
[14114,"Warteraum/ Wartefläche mit bes. bauk./ tech. Anf. und RLT 1"]
[14115,"Warteraum/ Wartefläche mit bes. bauk./ tech. Anf. und RLT 2"]
[14112,"Warteraum/ Wartefläche mit RLT 1"]
[89231,"Wartungsfläche"]
[39221,"Wäschepflegeraum"]
[39222,"Wäschepflegeraum mit Waschbecken"]
[39223,"Wäschepflegeraum mit Waschbecken, Sonderabsaugung und  RLT 1"]
[39211,"Wäschereiraum"]
[39212,"Wäschereiraum mit Sonderabsaugung und RLT 1"]
[78316,"Waschraum"]
[78331,"Waschraum"]
[78318,"Waschraum barrierefrei mit RLT 1"]
[62411,"Waschraum Endoskopie mit RLT 1"]
[78317,"Waschraum mit RLT 1"]
[78332,"Waschraum mit RLT 1"]
[78319,"Waschraum mit Strahlenschutzmaßnahmen und RLT 1"]
[63221,"Waschraum OP, Raumklasse II"]
[74251,"Wasserfahrzeugabstellfläche landseitig"]
[74252,"Wasserfahrzeugabstellfläche seeseitig"]
[78232,"Wellnessraum"]
[53131,"Werkraum - Holz mit Sonderabsaugung"]
[53711,"Werkstatt Bau/ Steine/ Erden"]
[53712,"Werkstatt Bau/ Steine/ Erden mit Sonderabsaugung"]
[53761,"Werkstatt Elektro"]
[32121,"Werkstatt Elektrotechnik"]
[53752,"Werkstatt Feinmechanik mit Sonderabsaugung"]
[32141,"Werkstatt Holz/ Kunststoff"]
[53741,"Werkstatt Holz/ Kunststoff"]
[32142,"Werkstatt Holz/ Kunststoff mit Sonderabsaugung"]
[32114,"Werkstatt Metall (fein)"]
[32115,"Werkstatt Metall (fein) mit fest eingebauten Einrichtungen"]
[53751,"Werkstatt Metall mit Sonderabsaugung"]
[32131,"Werkstatt Oberflächenbehandlung"]
[32132,"Werkstatt Oberflächenbehandlung mit Sonderabsaugung"]
[78211,"Wickelraum"]
[78212,"Wickelraum mit Waschtisch"]
[78213,"Wickelraum mit Waschtisch und RLT 1"]
[43114,"Wildkammer"]
[91211,"Windfang"]
[11111,"Wohnraum/ Schlafraum"]
[11112,"Wohnraum/ Schlafraum mit RLT 1"]
[25111,"Zahlstelle/Kassenraum"]
[25112,"Zahlstelle/Kassenraum mit RLT 1"]
[64121,"Zahnmedizinischer Röntgenuntersuchungsraum mit RLT 2"]
[62311,"Zahnmedizinischer U + B-Raum"]
[53631,"Zahnmedizinischer Übungsraum mit RLT 1"]
[53111,"Zeichensaal"]
[72312,"Zentraler Raum für Heizbrennstoffe fest"]
[72313,"Zentraler Raum für Heizbrennstoffe flüssig"]
[72811,"Zentraler Versorgungsraum Förderanlagen"]
[72712,"Zentraler Versorgungsraum Luft mit Kälte"]
[72711,"Zentraler Versorgungsraum Luft ohne Kälte"]
[72311,"Zentraler Versorgungsraum Wärme"]
[39314,"Zentralsterilisation, Raumklasse II"]
[35141,"Zentrifugenraum, einfach"]
[76111,"Ziviler Schutzraum"]
[76211,"Ziviler Schutzraum als Mehrzweckraum"]
[56121,"Zuschauerraum in Kino, Theater- und Konzertsälen mit RLT 2"]
[56111,"Zuschauerraum in Sport- und Mehrzweckhallen"]
[78412,"Zwangsdusche im strahlengeschützten, hygienisch abgeschlossenen Bereich und RLT 2"]
[78411,"Zwangsdusche mit RLT 1"]